Workbook

Sheet P-Values
C1: Simulating P-Values for
C2: Hypothesis Tests on Proportions
C4: This program simulates the P-Values of
C5: sample proportions based on repeated samples
C6: of size n drawn from a population with proportion P
A9: For the underlying population:
B10: What is the population proportion P (0.05 - 0.95) ?
C11: 3 | D11: =(5+5*C11)/100 -> 0.20
B13: What is the sample size n (10 - 100)?
C14: 56 | D14: =C14 -> 56
A16: What is the level of significance a? | D16: TRUE
D17: FALSE
D18: FALSE
D19: FALSE
A21: The mean and standard deviation | E21: m = | F21: =n*pi -> 11.20
B22: of the sampling distribution are: | E22: s = | F22: =SQRT(pi*(1-pi)/n) -> 0.053
A24: =" " &Calcs!K27&" of the 100 random sample means, or "&TEXT(Calcs!L27,"0.00%")&", " -> 96 of the 100 random sample means, or 96.00%,
B25: ="based on samples of size 50 from the "&TEXT(pop_name,"")&" population" -> based on samples of size 50 from the skewed population
B26: ="fell in the rejection region at the "&TEXT(Calcs!L24,"0%")&" significance level." -> fell in the rejection region at the 10% significance level.
D29: -1
A32: Click each item below for suggestions and investigations
C33: Item 1
C34: Item 2
C35: Item 3
C36: Item 4
C37: Item 5
C38: Item 6
A42: To access/download all the DIGMath Apps for Statistics
A43: Click this link: | C43: DIGMath for Statistics and Probability
A45: Created by: Sheldon P. Gordon & Florence S. Gordon
A46: Farmingdale State College NYIT
A47: Development of this module was supported by the
A48: NSF's Division of Undergraduate Education
A49: under grants DUE-0310123 and DUE-0442160.

Sheet Pops
B1: Normal data | E1: Uniform data | G1: U-shaped | I1: Skewed data | O1: =mean-1 -> 10.2 | P1: =0.398942/EXP((O1-mean)^2/2/sd^2)/sd -> 7.437199813e-76
A2: mu, sigma,n= | B2: 68.07 | E2: 68.47 | G2: 68.61 | I2: 71.19 | O2: =O1+0.01 -> 10.21 | P2: 2.420137176e-74
B3: 2.762 | C3: =B3/SQRT(50) -> 0.3906057859 | E3: 4.162 | F3: =E3/SQRT(50) -> 0.5885956847 | G3: 4.801 | H3: =G3/SQRT(50) -> 0.6789639313 | I3: 3.291 | J3: =I3/SQRT(50) -> 0.4654176834 | O3: =O2+0.01 -> 10.22 | P3: 7.604492034e-73
B4: 210 | E4: 424 | G4: 397 | I4: 410 | O4: 10.23 | P4: 2.307279082e-71
A5: 1 | B5: 61 | C5: 61 | D5: 4 | E5: 61 | F5: =COUNTIF(E$5:E$502,"=61") -> 23 | G5: 61 | H5: =COUNTIF(G$5:G$502,"=61") -> 18 | I5: 61 | J5: =COUNTIF(I$5:I$502,"=61") -> 3 | O5: 10.24 | P5: 6.7597361e-70
A6: 2 | B6: 61 | C6: 62 | D6: 12 | E6: 61 | F6: =COUNTIF(E$5:E$502,"=62") -> 28 | G6: 61 | H6: =COUNTIF(G$5:G$502,"=62") -> 22 | I6: 61 | J6: =COUNTIF(I$5:I$502,"=62") -> 5 | O6: 10.25 | P6: 1.912313307e-68
A7: 3 | B7: 62 | C7: 63 | D7: 6 | E7: 61 | F7: =COUNTIF(E$5:E$502,"=63") -> 19 | G7: 61 | H7: =COUNTIF(G$5:G$502,"=63") -> 35 | I7: 61 | J7: =COUNTIF(I$5:I$502,"=63") -> 6 | O7: 10.26 | P7: 5.223818102e-67
A8: 4 | B8: 62 | C8: 64 | D8: 16 | E8: 61 | F8: =COUNTIF(E$5:E$502,"=64") -> 24 | G8: 61 | H8: =COUNTIF(G$5:G$502,"=64") -> 44 | I8: 62 | J8: =COUNTIF(I$5:I$502,"=64") -> 15 | O8: 10.27 | P8: 1.377896948e-65
A9: 5 | B9: 62 | C9: 65 | D9: 28 | E9: 61 | F9: =COUNTIF(E$5:E$502,"=65") -> 25 | G9: 61 | H9: =COUNTIF(G$5:G$502,"=65") -> 36 | I9: 62 | J9: =COUNTIF(I$5:I$502,"=65") -> 11 | O9: 10.28 | P9: 3.509499002e-64
A10: 6 | B10: 62 | C10: 66 | D10: 54 | E10: 61 | F10: =COUNTIF(E$5:E$502,"=66") -> 27 | G10: 61 | H10: =COUNTIF(G$5:G$502,"=66") -> 21 | I10: 62 | J10: =COUNTIF(I$5:I$502,"=66") -> 10 | O10: 10.29 | P10: 8.631240174e-63
A11: 7 | B11: 62 | C11: 67 | D11: 60 | E11: 61 | F11: =COUNTIF(E$5:E$502,"=67") -> 21 | G11: 61 | H11: =COUNTIF(G$5:G$502,"=67") -> 7 | I11: 62 | J11: =COUNTIF(I$5:I$502,"=67") -> 15 | O11: 10.3 | P11: 2.049750368e-61
A12: 8 | B12: 62 | C12: 68 | D12: 70 | E12: 61 | F12: =COUNTIF(E$5:E$502,"=68") -> 29 | G12: 61 | H12: =COUNTIF(G$5:G$502,"=68") -> 8 | I12: 62 | J12: =COUNTIF(I$5:I$502,"=68") -> 14 | O12: 10.31 | P12: 4.700330949e-60
A13: 9 | B13: 63 | C13: 69 | D13: 56 | E13: 61 | F13: =COUNTIF(E$5:E$502,"=69") -> 34 | G13: 61 | H13: =COUNTIF(G$5:G$502,"=69") -> 9 | I13: 63 | J13: =COUNTIF(I$5:I$502,"=69") -> 23 | O13: 10.32 | P13: 1.040771989e-58
A14: 10 | B14: 63 | C14: 70 | D14: 32 | E14: 61 | F14: =COUNTIF(E$5:E$502,"=70") -> 29 | G14: 61 | H14: =COUNTIF(G$5:G$502,"=70") -> 10 | I14: 63 | J14: =COUNTIF(I$5:I$502,"=70") -> 20 | O14: 10.33 | P14: 2.225268632e-57
A15: 11 | B15: 63 | C15: 71 | D15: 28 | E15: 61 | F15: =COUNTIF(E$5:E$502,"=71") -> 44 | G15: 61 | H15: =COUNTIF(G$5:G$502,"=71") -> 24 | I15: 63 | J15: =COUNTIF(I$5:I$502,"=71") -> 54 | O15: 10.34 | P15: 4.5941904e-56
A16: 12 | B16: 64 | C16: 72 | D16: 20 | E16: 61 | F16: =COUNTIF(E$5:E$502,"=72") -> 37 | G16: 61 | H16: =COUNTIF(G$5:G$502,"=72") -> 34 | I16: 63 | J16: =COUNTIF(I$5:I$502,"=72") -> 58 | O16: 10.35 | P16: 9.158729387e-55
A17: 13 | B17: 64 | C17: 73 | D17: 18 | E17: 61 | F17: =COUNTIF(E$5:E$502,"=73") -> 28 | G17: 61 | H17: =COUNTIF(G$5:G$502,"=73") -> 45 | I17: 63 | J17: =COUNTIF(I$5:I$502,"=73") -> 60 | O17: 10.36 | P17: 1.763035906e-53
A18: 14 | B18: 64 | C18: 74 | D18: 12 | E18: 61 | F18: =COUNTIF(E$5:E$502,"=74") -> 35 | G18: 61 | H18: =COUNTIF(G$5:G$502,"=74") -> 41 | I18: 63 | J18: =COUNTIF(I$5:I$502,"=74") -> 54 | O18: 10.37 | P18: 3.277078017e-52
A19: 15 | B19: 64 | C19: 75 | D19: 4 | E19: 61 | F19: =COUNTIF(E$5:E$502,"=75") -> 21 | G19: 61 | H19: =COUNTIF(G$5:G$502,"=75") -> 43 | I19: 64 | J19: =COUNTIF(I$5:I$502,"=75") -> 62 | O19: 10.38 | P19: 5.881824976e-51
A20: 16 | B20: 64 | E20: 61 | G20: 61 | I20: 64 | O20: 10.39 | P20: 1.019382343e-49
A21: 17 | B21: 64 | E21: 61 | G21: 61 | I21: 64 | O21: 10.4 | P21: 1.705932368e-48
A22: 18 | B22: 64 | E22: 61 | G22: 61 | I22: 64 | O22: 10.41 | P22: 2.756679048e-47
A23: 19 | B23: 64 | E23: 61 | G23: 62 | I23: 64 | O23: 10.42 | P23: 4.301404593e-46
A24: 20 | B24: 65 | E24: 61 | G24: 62 | I24: 64 | O24: 10.43 | P24: 6.480881441e-45
A25: 21 | B25: 65 | E25: 61 | G25: 62 | I25: 64 | O25: 10.44 | P25: 9.428824494e-44
A26: 22 | B26: 65 | E26: 61 | G26: 62 | I26: 64 | O26: 10.45 | P26: 1.324587708e-42
A27: 23 | B27: 65 | E27: 61 | G27: 62 | I27: 64 | O27: 10.46 | P27: 1.7968159e-41
A28: 24 | B28: 65 | E28: 62 | G28: 62 | I28: 64 | O28: 10.47 | P28: 2.353564673e-40
A29: 25 | B29: 65 | E29: 62 | G29: 62 | I29: 64 | O29: 10.48 | P29: 2.976791278e-39
A30: 26 | B30: 65 | E30: 62 | G30: 62 | I30: 64 | O30: 10.49 | P30: 3.635551704e-38
A31: 27 | B31: 65 | E31: 62 | G31: 62 | I31: 64 | O31: 10.5 | P31: 4.287379821e-37
A32: 28 | B32: 65 | E32: 62 | G32: 62 | I32: 64 | O32: 10.51 | P32: 4.882174373e-36
A33: 29 | B33: 65 | E33: 62 | G33: 62 | I33: 64 | O33: 10.52 | P33: 5.36826946e-35
A34: 30 | B34: 65 | E34: 62 | G34: 62 | I34: 65 | O34: 10.53 | P34: 5.699739676e-34
A35: 31 | B35: 65 | E35: 62 | G35: 62 | I35: 65 | O35: 10.54 | P35: 5.843532008e-33
A36: 32 | B36: 65 | E36: 62 | G36: 62 | I36: 65 | O36: 10.55 | P36: 5.784895618e-32
A37: 33 | B37: 65 | E37: 62 | G37: 62 | I37: 65 | O37: 10.56 | P37: 5.52987507e-31
A38: 34 | B38: 66 | E38: 62 | G38: 62 | I38: 65 | O38: 10.57 | P38: 5.104283713e-30
A39: 35 | B39: 66 | E39: 62 | G39: 62 | I39: 65 | O39: 10.58 | P39: 4.549398553e-29
A40: 36 | B40: 66 | E40: 62 | G40: 62 | I40: 65 | O40: 10.59 | P40: 3.915370437e-28
A41: 37 | B41: 66 | E41: 62 | G41: 62 | I41: 65 | O41: 10.6 | P41: 3.253804256e-27
A42: 38 | B42: 66 | E42: 62 | G42: 62 | I42: 65 | O42: 10.61 | P42: 2.611016891e-26
A43: 39 | B43: 66 | E43: 62 | G43: 62 | I43: 65 | O43: 10.62 | P43: 2.023147903e-25
A44: 40 | B44: 66 | E44: 62 | G44: 62 | I44: 65 | O44: 10.63 | P44: 1.513719055e-24
A45: 41 | B45: 66 | E45: 62 | G45: 63 | I45: 66 | O45: 10.64 | P45: 1.09361036e-23
A46: 42 | B46: 66 | E46: 62 | G46: 63 | I46: 66 | O46: 10.65 | P46: 7.629211364e-23
A47: 43 | B47: 66 | E47: 62 | G47: 63 | I47: 66 | O47: 10.66 | P47: 5.139210082e-22
A48: 44 | B48: 66 | E48: 62 | G48: 63 | I48: 66 | O48: 10.67 | P48: 3.342818435e-21
A49: 45 | B49: 66 | E49: 62 | G49: 63 | I49: 66 | O49: 10.68 | P49: 2.099562944e-20
A50: 46 | B50: 66 | E50: 62 | G50: 63 | I50: 66 | O50: 10.69 | P50: 1.27334094e-19
A51: 47 | B51: 66 | E51: 62 | G51: 63 | I51: 66 | O51: 10.7 | P51: 7.456932287e-19
A52: 48 | B52: 66 | E52: 62 | G52: 63 | I52: 66 | O52: 10.71 | P52: 4.216726074e-18
A53: 49 | B53: 66 | E53: 62 | G53: 63 | I53: 66 | O53: 10.72 | P53: 2.302450342e-17
A54: 50 | B54: 66 | E54: 62 | G54: 63 | I54: 66 | O54: 10.73 | P54: 1.213961318e-16
A55: 51 | B55: 66 | E55: 62 | G55: 63 | I55: 67 | O55: 10.74 | P55: 6.180436061e-16
A56: 52 | B56: 66 | E56: 63 | G56: 63 | I56: 67 | O56: 10.75 | P56: 3.038316977e-15
A57: 53 | B57: 66 | E57: 63 | G57: 63 | I57: 67 | O57: 10.76 | P57: 1.442270551e-14
A58: 54 | B58: 66 | E58: 63 | G58: 63 | I58: 67 | O58: 10.77 | P58: 6.610892339e-14
A59: 55 | B59: 66 | E59: 63 | G59: 63 | I59: 67 | O59: 10.78 | P59: 2.925991946e-13
A60: 56 | B60: 66 | E60: 63 | G60: 63 | I60: 67 | O60: 10.79 | P60: 1.250506235e-12
A61: 57 | B61: 66 | E61: 63 | G61: 63 | I61: 67 | O61: 10.8 | P61: 5.160577321e-12
A62: 58 | B62: 66 | E62: 63 | G62: 63 | I62: 67 | O62: 10.81 | P62: 2.056413331e-11
A63: 59 | B63: 66 | E63: 63 | G63: 63 | I63: 67 | O63: 10.82 | P63: 7.912654902e-11
A64: 60 | B64: 66 | E64: 63 | G64: 63 | I64: 67 | O64: 10.83 | P64: 2.939907949e-10
A65: 61 | B65: 67 | E65: 63 | G65: 63 | I65: 67 | O65: 10.84 | P65: =0.398942/EXP((O65-mean)^2/2/sd^2)/sd -> 1.054738826e-09
A66: 62 | B66: 67 | E66: 63 | G66: 63 | I66: 67 | O66: 10.85 | P66: 3.653893013e-09
A67: 63 | B67: 67 | E67: 63 | G67: 63 | I67: 67 | O67: =O66+0.01 -> 10.86 | P67: 1.222267922e-08
A68: 64 | B68: 67 | E68: 63 | G68: 63 | I68: 67 | O68: 10.87 | P68: 3.947995908e-08
A69: 65 | B69: 67 | E69: 63 | G69: 63 | I69: 67 | O69: 10.88 | P69: 1.231364608e-07
A70: 66 | B70: 67 | E70: 63 | G70: 63 | I70: 68 | O70: 10.89 | P70: 3.708483349e-07
A71: 67 | B71: 67 | E71: 63 | G71: 63 | I71: 68 | O71: 10.9 | P71: 1.0784641e-06
A72: 68 | B72: 67 | E72: 63 | G72: 63 | I72: 68 | O72: 10.91 | P72: 3.028410514e-06
A73: 69 | B73: 67 | E73: 63 | G73: 63 | I73: 68 | O73: 10.92 | P73: 8.211518791e-06
A74: 70 | B74: 67 | E74: 63 | G74: 63 | I74: 68 | O74: 10.93 | P74: 2.149967673e-05
A75: 71 | B75: 67 | E75: 64 | G75: 63 | I75: 68 | O75: 10.94 | P75: 5.435507031e-05
A76: 72 | B76: 67 | E76: 64 | G76: 63 | I76: 68 | O76: 10.95 | P76: 0.0001326929615
A77: 73 | B77: 67 | E77: 64 | G77: 63 | I77: 68 | O77: 10.96 | P77: 0.000312791833
A78: 74 | B78: 67 | E78: 64 | G78: 63 | I78: 68 | O78: 10.97 | P78: 0.0007119715118
A79: 75 | B79: 67 | E79: 64 | G79: 63 | I79: 68 | O79: 10.98 | P79: 0.001564838494
A80: 76 | B80: 67 | E80: 64 | G80: 64 | I80: 68 | O80: 10.99 | P80: 0.003321055387
A81: 77 | B81: 67 | E81: 64 | G81: 64 | I81: 68 | O81: 11 | P81: 0.00680585057
A82: 78 | B82: 67 | E82: 64 | G82: 64 | I82: 68 | O82: 11.01 | P82: 0.0134675437
A83: 79 | B83: 67 | E83: 64 | G83: 64 | I83: 68 | O83: 11.02 | P83: 0.02573321629
A84: 80 | B84: 67 | E84: 64 | G84: 64 | I84: 69 | O84: 11.03 | P84: 0.04747876793
A85: 81 | B85: 67 | E85: 64 | G85: 64 | I85: 69 | O85: 11.04 | P85: 0.08458717168
A86: 82 | B86: 67 | E86: 64 | G86: 64 | I86: 69 | O86: 11.05 | P86: 0.1455155015
A87: 83 | B87: 67 | E87: 64 | G87: 64 | I87: 69 | O87: 11.06 | P87: 0.2417206257
A88: 84 | B88: 67 | E88: 64 | G88: 64 | I88: 69 | O88: 11.07 | P88: 0.3877196862
A89: 85 | B89: 67 | E89: 64 | G89: 64 | I89: 69 | O89: 11.08 | P89: 0.6005119973
A90: 86 | B90: 67 | E90: 64 | G90: 64 | I90: 69 | O90: 11.09 | P90: 0.8981010773
A91: 87 | B91: 67 | E91: 64 | G91: 64 | I91: 69 | O91: 11.1 | P91: 1.296965547
A92: 88 | B92: 67 | E92: 64 | G92: 64 | I92: 69 | O92: 11.11 | P92: 1.808553476
A93: 89 | B93: 67 | E93: 64 | G93: 64 | I93: 69 | O93: 11.12 | P93: 2.435196232
A94: 90 | B94: 67 | E94: 64 | G94: 64 | I94: 69 | O94: 11.13 | P94: 3.166184836
A95: 91 | B95: 68 | E95: 64 | G95: 64 | I95: 69 | O95: 11.14 | P95: 3.975010307
A96: 92 | B96: 68 | E96: 64 | G96: 64 | I96: 69 | O96: 11.15 | P96: 4.818811598
A97: 93 | B97: 68 | E97: 64 | G97: 64 | I97: 69 | O97: 11.16 | P97: 5.640808133
A98: 94 | B98: 68 | E98: 64 | G98: 64 | I98: 69 | O98: 11.17 | P98: 6.375913285
A99: 95 | B99: 68 | E99: 65 | G99: 64 | I99: 69 | O99: 11.18 | P99: 6.958941234
A100: 96 | B100: 68 | E100: 65 | G100: 64 | I100: 69 | O100: 11.19 | P100: 7.334045996
A101: 97 | B101: 68 | E101: 65 | G101: 64 | I101: 69 | O101: 11.2 | P101: 7.463521406
A102: 98 | B102: 68 | E102: 65 | G102: 64 | I102: 69 | O102: 11.21 | P102: 7.334045996
A103: 99 | B103: 68 | E103: 65 | G103: 64 | I103: 69 | O103: 11.22 | P103: 6.958941234
A104: 100 | B104: 68 | E104: 65 | G104: 64 | I104: 69 | O104: 11.23 | P104: 6.375913285
A105: 101 | B105: 68 | E105: 65 | G105: 64 | I105: 69 | O105: 11.24 | P105: 5.640808133
A106: 102 | B106: 68 | E106: 65 | G106: 64 | I106: 69 | O106: 11.25 | P106: 4.818811598
A107: 103 | B107: 68 | E107: 65 | G107: 64 | I107: 70 | O107: 11.26 | P107: 3.975010307
A108: 104 | B108: 68 | E108: 65 | G108: 64 | I108: 70 | O108: 11.27 | P108: 3.166184836
A109: 105 | B109: 68 | E109: 65 | G109: 64 | I109: 70 | O109: 11.28 | P109: 2.435196232
A110: 106 | B110: 68 | E110: 65 | G110: 64 | I110: 70 | O110: 11.29 | P110: 1.808553476
A111: 107 | B111: 68 | E111: 65 | G111: 64 | I111: 70 | O111: 11.3 | P111: 1.296965547
A112: 108 | B112: 68 | E112: 65 | G112: 64 | I112: 70 | O112: 11.31 | P112: 0.8981010773
A113: 109 | B113: 68 | E113: 65 | G113: 64 | I113: 70 | O113: 11.32 | P113: 0.6005119973
A114: 110 | B114: 68 | E114: 65 | G114: 64 | I114: 70 | O114: 11.33 | P114: 0.3877196862
A115: 111 | B115: 68 | E115: 65 | G115: 64 | I115: 70 | O115: 11.34 | P115: 0.2417206257
A116: 112 | B116: 68 | E116: 65 | G116: 64 | I116: 70 | O116: 11.35 | P116: 0.1455155015
A117: 113 | B117: 68 | E117: 65 | G117: 64 | I117: 70 | O117: 11.36 | P117: 0.08458717168
A118: 114 | B118: 68 | E118: 65 | G118: 64 | I118: 70 | O118: 11.37 | P118: 0.04747876793
A119: 115 | B119: 68 | E119: 65 | G119: 64 | I119: 70 | O119: 11.38 | P119: 0.02573321629
A120: 116 | B120: 68 | E120: 65 | G120: 64 | I120: 70 | O120: 11.39 | P120: 0.0134675437
A121: 117 | B121: 68 | E121: 65 | G121: 64 | I121: 70 | O121: 11.4 | P121: 0.00680585057
A122: 118 | B122: 68 | E122: 65 | G122: 64 | I122: 70 | O122: 11.41 | P122: 0.003321055387
A123: 119 | B123: 68 | E123: 65 | G123: 64 | I123: 70 | O123: 11.42 | P123: 0.001564838494
A124: 120 | B124: 68 | E124: 66 | G124: 65 | I124: 70 | O124: 11.43 | P124: 0.0007119715118
A125: 121 | B125: 68 | E125: 66 | G125: 65 | I125: 70 | O125: 11.44 | P125: 0.000312791833
A126: 122 | B126: 68 | E126: 66 | G126: 65 | I126: 70 | O126: 11.45 | P126: 0.0001326929615
A127: 123 | B127: 68 | E127: 66 | G127: 65 | I127: 71 | O127: 11.46 | P127: 5.435507031e-05
A128: 124 | B128: 68 | E128: 66 | G128: 65 | I128: 71 | O128: 11.47 | P128: 2.149967673e-05
A129: 125 | B129: 68 | E129: 66 | G129: 65 | I129: 71 | O129: 11.48 | P129: =0.398942/EXP((O129-mean)^2/2/sd^2)/sd -> 8.211518791e-06
A130: 126 | B130: 69 | E130: 66 | G130: 65 | I130: 71 | O130: 11.49 | P130: 3.028410514e-06
A131: 127 | B131: 69 | E131: 66 | G131: 65 | I131: 71 | O131: =O130+0.01 -> 11.5 | P131: 1.0784641e-06
A132: 128 | B132: 69 | E132: 66 | G132: 65 | I132: 71 | O132: 11.51 | P132: 3.708483349e-07
A133: 129 | B133: 69 | E133: 66 | G133: 65 | I133: 71 | O133: 11.52 | P133: 1.231364608e-07
A134: 130 | B134: 69 | E134: 66 | G134: 65 | I134: 71 | O134: 11.53 | P134: 3.947995908e-08
A135: 131 | B135: 69 | E135: 66 | G135: 65 | I135: 71 | O135: 11.54 | P135: 1.222267922e-08
A136: 132 | B136: 69 | E136: 66 | G136: 65 | I136: 71 | O136: 11.55 | P136: 3.653893013e-09
A137: 133 | B137: 69 | E137: 66 | G137: 65 | I137: 71 | O137: 11.56 | P137: 1.054738826e-09
A138: 134 | B138: 69 | E138: 66 | G138: 65 | I138: 71 | O138: 11.57 | P138: 2.939907949e-10
A139: 135 | B139: 69 | E139: 66 | G139: 65 | I139: 71 | O139: 11.58 | P139: 7.912654902e-11
A140: 136 | B140: 69 | E140: 66 | G140: 65 | I140: 71 | O140: 11.59 | P140: 2.056413332e-11
A141: 137 | B141: 69 | E141: 66 | G141: 65 | I141: 71 | O141: 11.6 | P141: 5.160577321e-12
A142: 138 | B142: 69 | E142: 66 | G142: 65 | I142: 71 | O142: 11.61 | P142: 1.250506235e-12
A143: 139 | B143: 69 | E143: 66 | G143: 65 | I143: 71 | O143: 11.62 | P143: 2.925991946e-13
A144: 140 | B144: 69 | E144: 66 | G144: 65 | I144: 71 | O144: 11.63 | P144: 6.610892339e-14
A145: 141 | B145: 69 | E145: 66 | G145: 65 | I145: 71 | O145: 11.64 | P145: 1.442270551e-14
A146: 142 | B146: 69 | E146: 66 | G146: 65 | I146: 71 | O146: 11.65 | P146: 3.038316977e-15
A147: 143 | B147: 69 | E147: 66 | G147: 65 | I147: 71 | O147: 11.66 | P147: 6.180436061e-16
A148: 144 | B148: 69 | E148: 66 | G148: 65 | I148: 71 | O148: 11.67 | P148: 1.213961318e-16
A149: 145 | B149: 69 | E149: 66 | G149: 65 | I149: 71 | O149: 11.68 | P149: 2.302450342e-17
A150: 146 | B150: 69 | E150: 66 | G150: 65 | I150: 71 | O150: 11.69 | P150: 4.216726074e-18
A151: 147 | B151: 69 | E151: 67 | G151: 65 | I151: 71 | O151: 11.7 | P151: 7.456932287e-19
A152: 148 | B152: 69 | E152: 67 | G152: 65 | I152: 71 | O152: 11.71 | P152: 1.27334094e-19
A153: 149 | B153: 69 | E153: 67 | G153: 65 | I153: 71 | O153: 11.72 | P153: 2.099562944e-20
A154: 150 | B154: 69 | E154: 67 | G154: 65 | I154: 71 | O154: 11.73 | P154: 3.342818435e-21
A155: 151 | B155: 69 | E155: 67 | G155: 65 | I155: 71 | O155: 11.74 | P155: 5.139210082e-22
A156: 152 | B156: 69 | E156: 67 | G156: 65 | I156: 71 | O156: 11.75 | P156: 7.629211364e-23
A157: 153 | B157: 69 | E157: 67 | G157: 65 | I157: 71 | O157: 11.76 | P157: 1.09361036e-23
A158: 154 | B158: 70 | E158: 67 | G158: 65 | I158: 71 | O158: 11.77 | P158: 1.513719055e-24
A159: 155 | B159: 70 | E159: 67 | G159: 65 | I159: 71 | O159: 11.78 | P159: 2.023147903e-25
A160: 156 | B160: 70 | E160: 67 | G160: 66 | I160: 71 | O160: 11.79 | P160: 2.611016891e-26
A161: 157 | B161: 70 | E161: 67 | G161: 66 | I161: 71 | O161: 11.8 | P161: 3.253804256e-27
A162: 158 | B162: 70 | E162: 67 | G162: 66 | I162: 71 | O162: 11.81 | P162: 3.915370437e-28
A163: 159 | B163: 70 | E163: 67 | G163: 66 | I163: 71 | O163: 11.82 | P163: 4.549398553e-29
A164: 160 | B164: 70 | E164: 67 | G164: 66 | I164: 71 | O164: 11.83 | P164: 5.104283714e-30
A165: 161 | B165: 70 | E165: 67 | G165: 66 | I165: 71 | O165: 11.84 | P165: 5.52987507e-31
A166: 162 | B166: 70 | E166: 67 | G166: 66 | I166: 71 | O166: 11.85 | P166: 5.784895618e-32
A167: 163 | B167: 70 | E167: 67 | G167: 66 | I167: 71 | O167: 11.86 | P167: 5.843532008e-33
A168: 164 | B168: 70 | E168: 67 | G168: 66 | I168: 71 | O168: 11.87 | P168: 5.699739676e-34
A169: 165 | B169: 70 | E169: 67 | G169: 66 | I169: 71 | O169: 11.88 | P169: 5.368269461e-35
A170: 166 | B170: 70 | E170: 67 | G170: 66 | I170: 71 | O170: 11.89 | P170: 4.882174373e-36
A171: 167 | B171: 70 | E171: 67 | G171: 66 | I171: 71 | O171: 11.9 | P171: 4.287379821e-37
A172: 168 | B172: 70 | E172: 68 | G172: 66 | I172: 71 | O172: 11.91 | P172: 3.635551704e-38
A173: 169 | B173: 70 | E173: 68 | G173: 66 | I173: 71 | O173: 11.92 | P173: 2.976791278e-39
A174: 170 | B174: 71 | E174: 68 | G174: 66 | I174: 71 | O174: 11.93 | P174: 2.353564673e-40
A175: 171 | B175: 71 | E175: 68 | G175: 66 | I175: 71 | O175: 11.94 | P175: 1.7968159e-41
A176: 172 | B176: 71 | E176: 68 | G176: 66 | I176: 71 | O176: 11.95 | P176: 1.324587708e-42
A177: 173 | B177: 71 | E177: 68 | G177: 66 | I177: 71 | O177: 11.96 | P177: 9.428824494e-44
A178: 174 | B178: 71 | E178: 68 | G178: 66 | I178: 71 | O178: 11.97 | P178: 6.480881441e-45
A179: 175 | B179: 71 | E179: 68 | G179: 66 | I179: 71 | O179: 11.98 | P179: 4.301404593e-46
A180: 176 | B180: 71 | E180: 68 | G180: 66 | I180: 71 | O180: 11.99 | P180: 2.756679048e-47
A181: 177 | B181: 71 | E181: 68 | G181: 67 | I181: 72 | O181: 12 | P181: 1.705932368e-48
A182: 178 | B182: 71 | E182: 68 | G182: 67 | I182: 72 | O182: 12.01 | P182: 1.019382343e-49
A183: 179 | B183: 71 | E183: 68 | G183: 67 | I183: 72 | O183: 12.02 | P183: 5.881824976e-51
A184: 180 | B184: 71 | E184: 68 | G184: 67 | I184: 72 | O184: 12.03 | P184: 3.277078017e-52
A185: 181 | B185: 71 | E185: 68 | G185: 67 | I185: 72 | O185: 12.04 | P185: 1.763035906e-53
A186: 182 | B186: 71 | E186: 68 | G186: 67 | I186: 72 | O186: 12.05 | P186: 9.158729387e-55
A187: 183 | B187: 71 | E187: 68 | G187: 67 | I187: 72 | O187: 12.06 | P187: 4.5941904e-56
A188: 184 | B188: 72 | E188: 68 | G188: 68 | I188: 72 | O188: 12.07 | P188: 2.225268632e-57
A189: 185 | B189: 72 | E189: 68 | G189: 68 | I189: 72 | O189: 12.08 | P189: 1.040771989e-58
A190: 186 | B190: 72 | E190: 68 | G190: 68 | I190: 72 | O190: 12.09 | P190: 4.700330949e-60
A191: 187 | B191: 72 | E191: 68 | G191: 68 | I191: 72 | O191: 12.1 | P191: 2.049750368e-61
A192: 188 | B192: 72 | E192: 68 | G192: 68 | I192: 72 | O192: 12.11 | P192: 8.631240175e-63
A193: 189 | B193: 72 | E193: 68 | G193: 68 | I193: 72 | O193: 12.12 | P193: =0.398942/EXP((O193-mean)^2/2/sd^2)/sd -> 3.509499002e-64
A194: 190 | B194: 72 | E194: 68 | G194: 68 | I194: 72 | O194: 12.13 | P194: 1.377896948e-65
A195: 191 | B195: 72 | E195: 68 | G195: 68 | I195: 72 | O195: =O194+0.01 -> 12.14 | P195: 5.223818103e-67
A196: 192 | B196: 72 | E196: 68 | G196: 69 | I196: 72 | O196: 12.15 | P196: 1.912313307e-68
A197: 193 | B197: 72 | E197: 68 | G197: 69 | I197: 72 | O197: 12.16 | P197: 6.7597361e-70
A198: 194 | B198: 73 | E198: 68 | G198: 69 | I198: 72 | O198: 12.17 | P198: 2.307279082e-71
A199: 195 | B199: 73 | E199: 68 | G199: 69 | I199: 72 | O199: 12.18 | P199: 7.604492034e-73
A200: 196 | B200: 73 | E200: 68 | G200: 69 | I200: 72 | O200: 12.19 | P200: 2.420137176e-74
... 228 more rows

Sheet samples
A1: =sampx(pop, popsize,newSample) -> 0 | B1: 0 | C1: 0 | D1: 0 | E1: 0 | F1: 0 | G1: 0 | H1: 0 | I1: 0 | J1: 0 | K1: =sampx(pop, popsize,newSample) -> 0 | L1: 0 | M1: 0 | N1: 0 | O1: 0 | P1: 0 | Q1: 0 | R1: 0 | S1: 0 | T1: 0 | U1: =sampx(pop, popsize,newSample) -> 0 | V1: 0 | W1: 0 | X1: 0 | Y1: 0 | Z1: 0 | AA1: 0 | AB1: 0 | AC1: 0 | AD1: 0 | AE1: =sampx(pop, popsize,newSample) -> 0 | AF1: 0 | AG1: 0 | AH1: 0 | AI1: 0 | AJ1: 0 | AK1: 0 | AL1: 0 | AM1: 0 | AN1: 0 | AO1: =sampx(pop, popsize,newSample) -> 0 | AP1: 0 | AQ1: 0 | AR1: 0 | AS1: 0 | AT1: 0 | AU1: 0 | AV1: 0 | AW1: 0 | AX1: 0 | AY1: =sampx(pop, popsize,newSample) -> 0 | AZ1: 0 | BA1: 0 | BB1: 0 | BC1: 0 | BD1: 0 | BE1: 0 | BF1: 0 | BG1: 0 | BH1: 0 | BI1: =sampx(pop, popsize,newSample) -> 0 | BJ1: 0 | BK1: 0 | BL1: 0 | BM1: 0 | BN1: 0 | BO1: 0 | BP1: 0 | BQ1: 0 | BR1: 0 | BS1: =sampx(pop, popsize,newSample) -> 0 | BT1: 0 | BU1: 0 | BV1: 0 | BW1: 0 | BX1: 0 | BY1: 0 | BZ1: 0 | CA1: 0 | CB1: 0 | CC1: 0 | CD1: 0 | CE1: 0 | CF1: 0 | CG1: 0 | CH1: 0 | CI1: =sampx(pop, popsize,newSample) -> 0 | CJ1: 0 | CK1: 0 | CL1: 0 | CM1: 0 | CN1: 0 | CO1: 0 | CP1: 0 | CQ1: 0 | CR1: 0 | CS1: 0 | CT1: 0 | CU1: 0 | CV1: 0
A2: 0 | B2: 0 | C2: 0 | D2: 0 | E2: 0 | F2: 0 | G2: 0 | H2: 0 | I2: 0 | J2: 0 | K2: 0 | L2: 0 | M2: 0 | N2: 0 | O2: 0 | P2: 0 | Q2: 0 | R2: 0 | S2: 0 | T2: 0 | U2: 0 | V2: 0 | W2: 0 | X2: 0 | Y2: 0 | Z2: 0 | AA2: 0 | AB2: 0 | AC2: 0 | AD2: 0 | AE2: 0 | AF2: 0 | AG2: 0 | AH2: 0 | AI2: 0 | AJ2: 0 | AK2: 0 | AL2: 0 | AM2: 0 | AN2: 0 | AO2: 0 | AP2: 0 | AQ2: 0 | AR2: 0 | AS2: 0 | AT2: 0 | AU2: 0 | AV2: 0 | AW2: 0 | AX2: 0 | AY2: 0 | AZ2: 0 | BA2: 0 | BB2: 0 | BC2: 0 | BD2: 0 | BE2: 0 | BF2: 0 | BG2: 0 | BH2: 0 | BI2: 0 | BJ2: 0 | BK2: 0 | BL2: 0 | BM2: 0 | BN2: 0 | BO2: 0 | BP2: 0 | BQ2: 0 | BR2: 0 | BS2: 0 | BT2: 0 | BU2: 0 | BV2: 0 | BW2: 0 | BX2: 0 | BY2: 0 | BZ2: 0 | CA2: 0 | CB2: 0 | CC2: 0 | CD2: 0 | CE2: 0 | CF2: 0 | CG2: 0 | CH2: 0 | CI2: 0 | CJ2: 0 | CK2: 0 | CL2: 0 | CM2: 0 | CN2: 0 | CO2: 0 | CP2: 0 | CQ2: 0 | CR2: 0 | CS2: 0 | CT2: 0 | CU2: 0 | CV2: 0
A3: 0 | B3: 0 | C3: 0 | D3: 0 | E3: 0 | F3: 0 | G3: 0 | H3: 0 | I3: 0 | J3: 0 | K3: 0 | L3: 0 | M3: 0 | N3: 0 | O3: 0 | P3: 0 | Q3: 0 | R3: 0 | S3: 0 | T3: 0 | U3: 0 | V3: 0 | W3: 0 | X3: 0 | Y3: 0 | Z3: 0 | AA3: 0 | AB3: 0 | AC3: 0 | AD3: 0 | AE3: 0 | AF3: 0 | AG3: 0 | AH3: 0 | AI3: 0 | AJ3: 0 | AK3: 0 | AL3: 0 | AM3: 0 | AN3: 0 | AO3: 0 | AP3: 0 | AQ3: 0 | AR3: 0 | AS3: 0 | AT3: 0 | AU3: 0 | AV3: 0 | AW3: 0 | AX3: 0 | AY3: 0 | AZ3: 0 | BA3: 0 | BB3: 0 | BC3: 0 | BD3: 0 | BE3: 0 | BF3: 0 | BG3: 0 | BH3: 0 | BI3: 0 | BJ3: 0 | BK3: 0 | BL3: 0 | BM3: 0 | BN3: 0 | BO3: 0 | BP3: 0 | BQ3: 0 | BR3: 0 | BS3: 0 | BT3: 0 | BU3: 0 | BV3: 0 | BW3: 0 | BX3: 0 | BY3: 0 | BZ3: 0 | CA3: 0 | CB3: 0 | CC3: 0 | CD3: 0 | CE3: 0 | CF3: 0 | CG3: 0 | CH3: 0 | CI3: 0 | CJ3: 0 | CK3: 0 | CL3: 0 | CM3: 0 | CN3: 0 | CO3: 0 | CP3: 0 | CQ3: 0 | CR3: 0 | CS3: 0 | CT3: 0 | CU3: 0 | CV3: 0
A4: 0 | B4: 0 | C4: 0 | D4: 0 | E4: 0 | F4: 0 | G4: 0 | H4: 0 | I4: 0 | J4: 0 | K4: 0 | L4: 0 | M4: 0 | N4: 0 | O4: 0 | P4: 0 | Q4: 0 | R4: 0 | S4: 0 | T4: 0 | U4: 0 | V4: 0 | W4: 0 | X4: 0 | Y4: 0 | Z4: 0 | AA4: 0 | AB4: 0 | AC4: 0 | AD4: 0 | AE4: 0 | AF4: 0 | AG4: 0 | AH4: 0 | AI4: 0 | AJ4: 0 | AK4: 0 | AL4: 0 | AM4: 0 | AN4: 0 | AO4: 0 | AP4: 0 | AQ4: 0 | AR4: 0 | AS4: 0 | AT4: 0 | AU4: 0 | AV4: 0 | AW4: 0 | AX4: 0 | AY4: 0 | AZ4: 0 | BA4: 0 | BB4: 0 | BC4: 0 | BD4: 0 | BE4: 0 | BF4: 0 | BG4: 0 | BH4: 0 | BI4: 0 | BJ4: 0 | BK4: 0 | BL4: 0 | BM4: 0 | BN4: 0 | BO4: 0 | BP4: 0 | BQ4: 0 | BR4: 0 | BS4: 0 | BT4: 0 | BU4: 0 | BV4: 0 | BW4: 0 | BX4: 0 | BY4: 0 | BZ4: 0 | CA4: 0 | CB4: 0 | CC4: 0 | CD4: 0 | CE4: 0 | CF4: 0 | CG4: 0 | CH4: 0 | CI4: 0 | CJ4: 0 | CK4: 0 | CL4: 0 | CM4: 0 | CN4: 0 | CO4: 0 | CP4: 0 | CQ4: 0 | CR4: 0 | CS4: 0 | CT4: 0 | CU4: 0 | CV4: 0
A5: 0 | B5: 0 | C5: 0 | D5: 0 | E5: 0 | F5: 0 | G5: 0 | H5: 0 | I5: 0 | J5: 0 | K5: 0 | L5: 0 | M5: 0 | N5: 0 | O5: 0 | P5: 0 | Q5: 0 | R5: 0 | S5: 0 | T5: 0 | U5: 0 | V5: 0 | W5: 0 | X5: 0 | Y5: 0 | Z5: 0 | AA5: 0 | AB5: 0 | AC5: 0 | AD5: 0 | AE5: 0 | AF5: 0 | AG5: 0 | AH5: 0 | AI5: 0 | AJ5: 0 | AK5: 0 | AL5: 0 | AM5: 0 | AN5: 0 | AO5: 0 | AP5: 0 | AQ5: 0 | AR5: 0 | AS5: 0 | AT5: 0 | AU5: 0 | AV5: 0 | AW5: 0 | AX5: 0 | AY5: 0 | AZ5: 0 | BA5: 0 | BB5: 0 | BC5: 0 | BD5: 0 | BE5: 0 | BF5: 0 | BG5: 0 | BH5: 0 | BI5: 0 | BJ5: 0 | BK5: 0 | BL5: 0 | BM5: 0 | BN5: 0 | BO5: 0 | BP5: 0 | BQ5: 0 | BR5: 0 | BS5: 0 | BT5: 0 | BU5: 0 | BV5: 0 | BW5: 0 | BX5: 0 | BY5: 0 | BZ5: 0 | CA5: 0 | CB5: 0 | CC5: 0 | CD5: 0 | CE5: 0 | CF5: 0 | CG5: 0 | CH5: 0 | CI5: 0 | CJ5: 0 | CK5: 0 | CL5: 0 | CM5: 0 | CN5: 0 | CO5: 0 | CP5: 0 | CQ5: 0 | CR5: 0 | CS5: 0 | CT5: 0 | CU5: 0 | CV5: 0
A6: 0 | B6: 0 | C6: 0 | D6: 0 | E6: 0 | F6: 0 | G6: 0 | H6: 0 | I6: 0 | J6: 0 | K6: 0 | L6: 0 | M6: 0 | N6: 0 | O6: 0 | P6: 0 | Q6: 0 | R6: 0 | S6: 0 | T6: 0 | U6: 0 | V6: 0 | W6: 0 | X6: 0 | Y6: 0 | Z6: 0 | AA6: 0 | AB6: 0 | AC6: 0 | AD6: 0 | AE6: 0 | AF6: 0 | AG6: 0 | AH6: 0 | AI6: 0 | AJ6: 0 | AK6: 0 | AL6: 0 | AM6: 0 | AN6: 0 | AO6: 0 | AP6: 0 | AQ6: 0 | AR6: 0 | AS6: 0 | AT6: 0 | AU6: 0 | AV6: 0 | AW6: 0 | AX6: 0 | AY6: 0 | AZ6: 0 | BA6: 0 | BB6: 0 | BC6: 0 | BD6: 0 | BE6: 0 | BF6: 0 | BG6: 0 | BH6: 0 | BI6: 0 | BJ6: 0 | BK6: 0 | BL6: 0 | BM6: 0 | BN6: 0 | BO6: 0 | BP6: 0 | BQ6: 0 | BR6: 0 | BS6: 0 | BT6: 0 | BU6: 0 | BV6: 0 | BW6: 0 | BX6: 0 | BY6: 0 | BZ6: 0 | CA6: 0 | CB6: 0 | CC6: 0 | CD6: 0 | CE6: 0 | CF6: 0 | CG6: 0 | CH6: 0 | CI6: 0 | CJ6: 0 | CK6: 0 | CL6: 0 | CM6: 0 | CN6: 0 | CO6: 0 | CP6: 0 | CQ6: 0 | CR6: 0 | CS6: 0 | CT6: 0 | CU6: 0 | CV6: 0
A7: 0 | B7: 0 | C7: 0 | D7: 0 | E7: 0 | F7: 0 | G7: 0 | H7: 0 | I7: 0 | J7: 0 | K7: 0 | L7: 0 | M7: 0 | N7: 0 | O7: 0 | P7: 0 | Q7: 0 | R7: 0 | S7: 0 | T7: 0 | U7: 0 | V7: 0 | W7: 0 | X7: 0 | Y7: 0 | Z7: 0 | AA7: 0 | AB7: 0 | AC7: 0 | AD7: 0 | AE7: 0 | AF7: 0 | AG7: 0 | AH7: 0 | AI7: 0 | AJ7: 0 | AK7: 0 | AL7: 0 | AM7: 0 | AN7: 0 | AO7: 0 | AP7: 0 | AQ7: 0 | AR7: 0 | AS7: 0 | AT7: 0 | AU7: 0 | AV7: 0 | AW7: 0 | AX7: 0 | AY7: 0 | AZ7: 0 | BA7: 0 | BB7: 0 | BC7: 0 | BD7: 0 | BE7: 0 | BF7: 0 | BG7: 0 | BH7: 0 | BI7: 0 | BJ7: 0 | BK7: 0 | BL7: 0 | BM7: 0 | BN7: 0 | BO7: 0 | BP7: 0 | BQ7: 0 | BR7: 0 | BS7: 0 | BT7: 0 | BU7: 0 | BV7: 0 | BW7: 0 | BX7: 0 | BY7: 0 | BZ7: 0 | CA7: 0 | CB7: 0 | CC7: 0 | CD7: 0 | CE7: 0 | CF7: 0 | CG7: 0 | CH7: 0 | CI7: 0 | CJ7: 0 | CK7: 0 | CL7: 0 | CM7: 0 | CN7: 0 | CO7: 0 | CP7: 0 | CQ7: 0 | CR7: 0 | CS7: 0 | CT7: 0 | CU7: 0 | CV7: 0
A8: 0 | B8: 0 | C8: 0 | D8: 0 | E8: 0 | F8: 0 | G8: 0 | H8: 0 | I8: 0 | J8: 0 | K8: 0 | L8: 0 | M8: 0 | N8: 0 | O8: 0 | P8: 0 | Q8: 0 | R8: 0 | S8: 0 | T8: 0 | U8: 0 | V8: 0 | W8: 0 | X8: 0 | Y8: 0 | Z8: 0 | AA8: 0 | AB8: 0 | AC8: 0 | AD8: 0 | AE8: 0 | AF8: 0 | AG8: 0 | AH8: 0 | AI8: 0 | AJ8: 0 | AK8: 0 | AL8: 0 | AM8: 0 | AN8: 0 | AO8: 0 | AP8: 0 | AQ8: 0 | AR8: 0 | AS8: 0 | AT8: 0 | AU8: 0 | AV8: 0 | AW8: 0 | AX8: 0 | AY8: 0 | AZ8: 0 | BA8: 0 | BB8: 0 | BC8: 0 | BD8: 0 | BE8: 0 | BF8: 0 | BG8: 0 | BH8: 0 | BI8: 0 | BJ8: 0 | BK8: 0 | BL8: 0 | BM8: 0 | BN8: 0 | BO8: 0 | BP8: 0 | BQ8: 0 | BR8: 0 | BS8: 0 | BT8: 0 | BU8: 0 | BV8: 0 | BW8: 0 | BX8: 0 | BY8: 0 | BZ8: 0 | CA8: 0 | CB8: 0 | CC8: 0 | CD8: 0 | CE8: 0 | CF8: 0 | CG8: 0 | CH8: 0 | CI8: 0 | CJ8: 0 | CK8: 0 | CL8: 0 | CM8: 0 | CN8: 0 | CO8: 0 | CP8: 0 | CQ8: 0 | CR8: 0 | CS8: 0 | CT8: 0 | CU8: 0 | CV8: 0
A9: 0 | B9: 0 | C9: 0 | D9: 0 | E9: 0 | F9: 0 | G9: 0 | H9: 0 | I9: 0 | J9: 0 | K9: 0 | L9: 0 | M9: 0 | N9: 0 | O9: 0 | P9: 0 | Q9: 0 | R9: 0 | S9: 0 | T9: 0 | U9: 0 | V9: 0 | W9: 0 | X9: 0 | Y9: 0 | Z9: 0 | AA9: 0 | AB9: 0 | AC9: 0 | AD9: 0 | AE9: 0 | AF9: 0 | AG9: 0 | AH9: 0 | AI9: 0 | AJ9: 0 | AK9: 0 | AL9: 0 | AM9: 0 | AN9: 0 | AO9: 0 | AP9: 0 | AQ9: 0 | AR9: 0 | AS9: 0 | AT9: 0 | AU9: 0 | AV9: 0 | AW9: 0 | AX9: 0 | AY9: 0 | AZ9: 0 | BA9: 0 | BB9: 0 | BC9: 0 | BD9: 0 | BE9: 0 | BF9: 0 | BG9: 0 | BH9: 0 | BI9: 0 | BJ9: 0 | BK9: 0 | BL9: 0 | BM9: 0 | BN9: 0 | BO9: 0 | BP9: 0 | BQ9: 0 | BR9: 0 | BS9: 0 | BT9: 0 | BU9: 0 | BV9: 0 | BW9: 0 | BX9: 0 | BY9: 0 | BZ9: 0 | CA9: 0 | CB9: 0 | CC9: 0 | CD9: 0 | CE9: 0 | CF9: 0 | CG9: 0 | CH9: 0 | CI9: 0 | CJ9: 0 | CK9: 0 | CL9: 0 | CM9: 0 | CN9: 0 | CO9: 0 | CP9: 0 | CQ9: 0 | CR9: 0 | CS9: 0 | CT9: 0 | CU9: 0 | CV9: 0
A10: 0 | B10: 0 | C10: 0 | D10: 0 | E10: 0 | F10: 0 | G10: 0 | H10: 0 | I10: 0 | J10: 0 | K10: 0 | L10: 0 | M10: 0 | N10: 0 | O10: 0 | P10: 0 | Q10: 0 | R10: 0 | S10: 0 | T10: 0 | U10: 0 | V10: 0 | W10: 0 | X10: 0 | Y10: 0 | Z10: 0 | AA10: 0 | AB10: 0 | AC10: 0 | AD10: 0 | AE10: 0 | AF10: 0 | AG10: 0 | AH10: 0 | AI10: 0 | AJ10: 0 | AK10: 0 | AL10: 0 | AM10: 0 | AN10: 0 | AO10: 0 | AP10: 0 | AQ10: 0 | AR10: 0 | AS10: 0 | AT10: 0 | AU10: 0 | AV10: 0 | AW10: 0 | AX10: 0 | AY10: 0 | AZ10: 0 | BA10: 0 | BB10: 0 | BC10: 0 | BD10: 0 | BE10: 0 | BF10: 0 | BG10: 0 | BH10: 0 | BI10: 0 | BJ10: 0 | BK10: 0 | BL10: 0 | BM10: 0 | BN10: 0 | BO10: 0 | BP10: 0 | BQ10: 0 | BR10: 0 | BS10: 0 | BT10: 0 | BU10: 0 | BV10: 0 | BW10: 0 | BX10: 0 | BY10: 0 | BZ10: 0 | CA10: 0 | CB10: 0 | CC10: 0 | CD10: 0 | CE10: 0 | CF10: 0 | CG10: 0 | CH10: 0 | CI10: 0 | CJ10: 0 | CK10: 0 | CL10: 0 | CM10: 0 | CN10: 0 | CO10: 0 | CP10: 0 | CQ10: 0 | CR10: 0 | CS10: 0 | CT10: 0 | CU10: 0 | CV10: 0
A11: =sampx(pop, popsize,newSample) -> 0 | B11: 0 | C11: 0 | D11: 0 | E11: 0 | F11: 0 | G11: 0 | H11: 0 | I11: 0 | J11: 0 | K11: =sampx(pop, popsize,newSample) -> 0 | L11: 0 | M11: 0 | N11: 0 | O11: 0 | P11: 0 | Q11: 0 | R11: 0 | S11: 0 | T11: 0 | U11: =sampx(pop, popsize,newSample) -> 0 | V11: 0 | W11: 0 | X11: 0 | Y11: 0 | Z11: 0 | AA11: 0 | AB11: 0 | AC11: 0 | AD11: 0 | AE11: =sampx(pop, popsize,newSample) -> 0 | AF11: 0 | AG11: 0 | AH11: 0 | AI11: 0 | AJ11: 0 | AK11: 0 | AL11: 0 | AM11: 0 | AN11: 0 | AO11: =sampx(pop, popsize,newSample) -> 0 | AP11: 0 | AQ11: 0 | AR11: 0 | AS11: 0 | AT11: 0 | AU11: 0 | AV11: 0 | AW11: 0 | AX11: 0 | AY11: =sampx(pop, popsize,newSample) -> 0 | AZ11: 0 | BA11: 0 | BB11: 0 | BC11: 0 | BD11: 0 | BE11: 0 | BF11: 0 | BG11: 0 | BH11: 0 | BI11: =sampx(pop, popsize,newSample) -> 0 | BJ11: 0 | BK11: 0 | BL11: 0 | BM11: 0 | BN11: 0 | BO11: 0 | BP11: 0 | BQ11: 0 | BR11: 0 | BS11: =sampx(pop, popsize,newSample) -> 0 | BT11: 0 | BU11: 0 | BV11: 0 | BW11: 0 | BX11: 0 | BY11: 0 | BZ11: 0 | CA11: 0 | CB11: 0 | CC11: 0 | CD11: 0 | CE11: 0 | CF11: 0 | CG11: 0 | CH11: 0 | CI11: 0 | CJ11: 0 | CK11: 0 | CL11: 0 | CM11: 0 | CN11: 0 | CO11: 0 | CP11: 0 | CQ11: 0 | CR11: 0 | CS11: 0 | CT11: 0 | CU11: 0 | CV11: 0
A12: 0 | B12: 0 | C12: 0 | D12: 0 | E12: 0 | F12: 0 | G12: 0 | H12: 0 | I12: 0 | J12: 0 | K12: 0 | L12: 0 | M12: 0 | N12: 0 | O12: 0 | P12: 0 | Q12: 0 | R12: 0 | S12: 0 | T12: 0 | U12: 0 | V12: 0 | W12: 0 | X12: 0 | Y12: 0 | Z12: 0 | AA12: 0 | AB12: 0 | AC12: 0 | AD12: 0 | AE12: 0 | AF12: 0 | AG12: 0 | AH12: 0 | AI12: 0 | AJ12: 0 | AK12: 0 | AL12: 0 | AM12: 0 | AN12: 0 | AO12: 0 | AP12: 0 | AQ12: 0 | AR12: 0 | AS12: 0 | AT12: 0 | AU12: 0 | AV12: 0 | AW12: 0 | AX12: 0 | AY12: 0 | AZ12: 0 | BA12: 0 | BB12: 0 | BC12: 0 | BD12: 0 | BE12: 0 | BF12: 0 | BG12: 0 | BH12: 0 | BI12: 0 | BJ12: 0 | BK12: 0 | BL12: 0 | BM12: 0 | BN12: 0 | BO12: 0 | BP12: 0 | BQ12: 0 | BR12: 0 | BS12: 0 | BT12: 0 | BU12: 0 | BV12: 0 | BW12: 0 | BX12: 0 | BY12: 0 | BZ12: 0 | CA12: 0 | CB12: 0 | CC12: 0 | CD12: 0 | CE12: 0 | CF12: 0 | CG12: 0 | CH12: 0 | CI12: 0 | CJ12: 0 | CK12: 0 | CL12: 0 | CM12: 0 | CN12: 0 | CO12: 0 | CP12: 0 | CQ12: 0 | CR12: 0 | CS12: 0 | CT12: 0 | CU12: 0 | CV12: 0
A13: 0 | B13: 0 | C13: 0 | D13: 0 | E13: 0 | F13: 0 | G13: 0 | H13: 0 | I13: 0 | J13: 0 | K13: 0 | L13: 0 | M13: 0 | N13: 0 | O13: 0 | P13: 0 | Q13: 0 | R13: 0 | S13: 0 | T13: 0 | U13: 0 | V13: 0 | W13: 0 | X13: 0 | Y13: 0 | Z13: 0 | AA13: 0 | AB13: 0 | AC13: 0 | AD13: 0 | AE13: 0 | AF13: 0 | AG13: 0 | AH13: 0 | AI13: 0 | AJ13: 0 | AK13: 0 | AL13: 0 | AM13: 0 | AN13: 0 | AO13: 0 | AP13: 0 | AQ13: 0 | AR13: 0 | AS13: 0 | AT13: 0 | AU13: 0 | AV13: 0 | AW13: 0 | AX13: 0 | AY13: 0 | AZ13: 0 | BA13: 0 | BB13: 0 | BC13: 0 | BD13: 0 | BE13: 0 | BF13: 0 | BG13: 0 | BH13: 0 | BI13: 0 | BJ13: 0 | BK13: 0 | BL13: 0 | BM13: 0 | BN13: 0 | BO13: 0 | BP13: 0 | BQ13: 0 | BR13: 0 | BS13: 0 | BT13: 0 | BU13: 0 | BV13: 0 | BW13: 0 | BX13: 0 | BY13: 0 | BZ13: 0 | CA13: 0 | CB13: 0 | CC13: 0 | CD13: 0 | CE13: 0 | CF13: 0 | CG13: 0 | CH13: 0 | CI13: 0 | CJ13: 0 | CK13: 0 | CL13: 0 | CM13: 0 | CN13: 0 | CO13: 0 | CP13: 0 | CQ13: 0 | CR13: 0 | CS13: 0 | CT13: 0 | CU13: 0 | CV13: 0
A14: 0 | B14: 0 | C14: 0 | D14: 0 | E14: 0 | F14: 0 | G14: 0 | H14: 0 | I14: 0 | J14: 0 | K14: 0 | L14: 0 | M14: 0 | N14: 0 | O14: 0 | P14: 0 | Q14: 0 | R14: 0 | S14: 0 | T14: 0 | U14: 0 | V14: 0 | W14: 0 | X14: 0 | Y14: 0 | Z14: 0 | AA14: 0 | AB14: 0 | AC14: 0 | AD14: 0 | AE14: 0 | AF14: 0 | AG14: 0 | AH14: 0 | AI14: 0 | AJ14: 0 | AK14: 0 | AL14: 0 | AM14: 0 | AN14: 0 | AO14: 0 | AP14: 0 | AQ14: 0 | AR14: 0 | AS14: 0 | AT14: 0 | AU14: 0 | AV14: 0 | AW14: 0 | AX14: 0 | AY14: 0 | AZ14: 0 | BA14: 0 | BB14: 0 | BC14: 0 | BD14: 0 | BE14: 0 | BF14: 0 | BG14: 0 | BH14: 0 | BI14: 0 | BJ14: 0 | BK14: 0 | BL14: 0 | BM14: 0 | BN14: 0 | BO14: 0 | BP14: 0 | BQ14: 0 | BR14: 0 | BS14: 0 | BT14: 0 | BU14: 0 | BV14: 0 | BW14: 0 | BX14: 0 | BY14: 0 | BZ14: 0 | CA14: 0 | CB14: 0 | CC14: 0 | CD14: 0 | CE14: 0 | CF14: 0 | CG14: 0 | CH14: 0 | CI14: 0 | CJ14: =sampx(pop, popsize,newSample) -> 0 | CK14: 0 | CL14: 0 | CM14: 0 | CN14: 0 | CO14: 0 | CP14: 0 | CQ14: 0 | CR14: 0 | CS14: 0 | CT14: 0 | CU14: 0 | CV14: 0
A15: 0 | B15: 0 | C15: 0 | D15: 0 | E15: 0 | F15: 0 | G15: 0 | H15: 0 | I15: 0 | J15: 0 | K15: 0 | L15: 0 | M15: 0 | N15: 0 | O15: 0 | P15: 0 | Q15: 0 | R15: 0 | S15: 0 | T15: 0 | U15: 0 | V15: 0 | W15: 0 | X15: 0 | Y15: 0 | Z15: 0 | AA15: 0 | AB15: 0 | AC15: 0 | AD15: 0 | AE15: 0 | AF15: 0 | AG15: 0 | AH15: 0 | AI15: 0 | AJ15: 0 | AK15: 0 | AL15: 0 | AM15: 0 | AN15: 0 | AO15: 0 | AP15: 0 | AQ15: 0 | AR15: 0 | AS15: 0 | AT15: 0 | AU15: 0 | AV15: 0 | AW15: 0 | AX15: 0 | AY15: 0 | AZ15: 0 | BA15: 0 | BB15: 0 | BC15: 0 | BD15: 0 | BE15: 0 | BF15: 0 | BG15: 0 | BH15: 0 | BI15: 0 | BJ15: 0 | BK15: 0 | BL15: 0 | BM15: 0 | BN15: 0 | BO15: 0 | BP15: 0 | BQ15: 0 | BR15: 0 | BS15: 0 | BT15: 0 | BU15: 0 | BV15: 0 | BW15: 0 | BX15: 0 | BY15: 0 | BZ15: 0 | CA15: 0 | CB15: 0 | CC15: 0 | CD15: 0 | CE15: 0 | CF15: 0 | CG15: 0 | CH15: 0 | CI15: 0 | CJ15: 0 | CK15: 0 | CL15: 0 | CM15: 0 | CN15: 0 | CO15: 0 | CP15: 0 | CQ15: 0 | CR15: 0 | CS15: 0 | CT15: 0 | CU15: 0 | CV15: 0
A16: 0 | B16: 0 | C16: 0 | D16: 0 | E16: 0 | F16: 0 | G16: 0 | H16: 0 | I16: 0 | J16: 0 | K16: 0 | L16: 0 | M16: 0 | N16: 0 | O16: 0 | P16: 0 | Q16: 0 | R16: 0 | S16: 0 | T16: 0 | U16: 0 | V16: 0 | W16: 0 | X16: 0 | Y16: 0 | Z16: 0 | AA16: 0 | AB16: 0 | AC16: 0 | AD16: 0 | AE16: 0 | AF16: 0 | AG16: 0 | AH16: 0 | AI16: 0 | AJ16: 0 | AK16: 0 | AL16: 0 | AM16: 0 | AN16: 0 | AO16: 0 | AP16: 0 | AQ16: 0 | AR16: 0 | AS16: 0 | AT16: 0 | AU16: 0 | AV16: 0 | AW16: 0 | AX16: 0 | AY16: 0 | AZ16: 0 | BA16: 0 | BB16: 0 | BC16: 0 | BD16: 0 | BE16: 0 | BF16: 0 | BG16: 0 | BH16: 0 | BI16: 0 | BJ16: 0 | BK16: 0 | BL16: 0 | BM16: 0 | BN16: 0 | BO16: 0 | BP16: 0 | BQ16: 0 | BR16: 0 | BS16: 0 | BT16: 0 | BU16: 0 | BV16: 0 | BW16: 0 | BX16: 0 | BY16: 0 | BZ16: 0 | CA16: 0 | CB16: 0 | CC16: 0 | CD16: 0 | CE16: 0 | CF16: 0 | CG16: 0 | CH16: 0 | CI16: 0 | CJ16: 0 | CK16: 0 | CL16: 0 | CM16: 0 | CN16: 0 | CO16: 0 | CP16: 0 | CQ16: 0 | CR16: 0 | CS16: 0 | CT16: 0 | CU16: 0 | CV16: 0
A17: 0 | B17: 0 | C17: 0 | D17: 0 | E17: 0 | F17: 0 | G17: 0 | H17: 0 | I17: 0 | J17: 0 | K17: 0 | L17: 0 | M17: 0 | N17: 0 | O17: 0 | P17: 0 | Q17: 0 | R17: 0 | S17: 0 | T17: 0 | U17: 0 | V17: 0 | W17: 0 | X17: 0 | Y17: 0 | Z17: 0 | AA17: 0 | AB17: 0 | AC17: 0 | AD17: 0 | AE17: 0 | AF17: 0 | AG17: 0 | AH17: 0 | AI17: 0 | AJ17: 0 | AK17: 0 | AL17: 0 | AM17: 0 | AN17: 0 | AO17: 0 | AP17: 0 | AQ17: 0 | AR17: 0 | AS17: 0 | AT17: 0 | AU17: 0 | AV17: 0 | AW17: 0 | AX17: 0 | AY17: 0 | AZ17: 0 | BA17: 0 | BB17: 0 | BC17: 0 | BD17: 0 | BE17: 0 | BF17: 0 | BG17: 0 | BH17: 0 | BI17: 0 | BJ17: 0 | BK17: 0 | BL17: 0 | BM17: 0 | BN17: 0 | BO17: 0 | BP17: 0 | BQ17: 0 | BR17: 0 | BS17: 0 | BT17: 0 | BU17: 0 | BV17: 0 | BW17: 0 | BX17: 0 | BY17: 0 | BZ17: 0 | CA17: 0 | CB17: 0 | CC17: 0 | CD17: 0 | CE17: 0 | CF17: 0 | CG17: 0 | CH17: 0 | CI17: 0 | CJ17: 0 | CK17: 0 | CL17: 0 | CM17: 0 | CN17: 0 | CO17: 0 | CP17: 0 | CQ17: 0 | CR17: 0 | CS17: 0 | CT17: 0 | CU17: 0 | CV17: 0
A18: 0 | B18: 0 | C18: 0 | D18: 0 | E18: 0 | F18: 0 | G18: 0 | H18: 0 | I18: 0 | J18: 0 | K18: 0 | L18: 0 | M18: 0 | N18: 0 | O18: 0 | P18: 0 | Q18: 0 | R18: 0 | S18: 0 | T18: 0 | U18: 0 | V18: 0 | W18: 0 | X18: 0 | Y18: 0 | Z18: 0 | AA18: 0 | AB18: 0 | AC18: 0 | AD18: 0 | AE18: 0 | AF18: 0 | AG18: 0 | AH18: 0 | AI18: 0 | AJ18: 0 | AK18: 0 | AL18: 0 | AM18: 0 | AN18: 0 | AO18: 0 | AP18: 0 | AQ18: 0 | AR18: 0 | AS18: 0 | AT18: 0 | AU18: 0 | AV18: 0 | AW18: 0 | AX18: 0 | AY18: 0 | AZ18: 0 | BA18: 0 | BB18: 0 | BC18: 0 | BD18: 0 | BE18: 0 | BF18: 0 | BG18: 0 | BH18: 0 | BI18: 0 | BJ18: 0 | BK18: 0 | BL18: 0 | BM18: 0 | BN18: 0 | BO18: 0 | BP18: 0 | BQ18: 0 | BR18: 0 | BS18: 0 | BT18: 0 | BU18: 0 | BV18: 0 | BW18: 0 | BX18: 0 | BY18: 0 | BZ18: 0 | CA18: 0 | CB18: 0 | CC18: 0 | CD18: 0 | CE18: 0 | CF18: 0 | CG18: 0 | CH18: 0 | CI18: 0 | CJ18: 0 | CK18: 0 | CL18: 0 | CM18: 0 | CN18: 0 | CO18: 0 | CP18: 0 | CQ18: 0 | CR18: 0 | CS18: 0 | CT18: 0 | CU18: 0 | CV18: 0
A19: 0 | B19: 0 | C19: 0 | D19: 0 | E19: 0 | F19: 0 | G19: 0 | H19: 0 | I19: 0 | J19: 0 | K19: 0 | L19: 0 | M19: 0 | N19: 0 | O19: 0 | P19: 0 | Q19: 0 | R19: 0 | S19: 0 | T19: 0 | U19: 0 | V19: 0 | W19: 0 | X19: 0 | Y19: 0 | Z19: 0 | AA19: 0 | AB19: 0 | AC19: 0 | AD19: 0 | AE19: 0 | AF19: 0 | AG19: 0 | AH19: 0 | AI19: 0 | AJ19: 0 | AK19: 0 | AL19: 0 | AM19: 0 | AN19: 0 | AO19: 0 | AP19: 0 | AQ19: 0 | AR19: 0 | AS19: 0 | AT19: 0 | AU19: 0 | AV19: 0 | AW19: 0 | AX19: 0 | AY19: 0 | AZ19: 0 | BA19: 0 | BB19: 0 | BC19: 0 | BD19: 0 | BE19: 0 | BF19: 0 | BG19: 0 | BH19: 0 | BI19: 0 | BJ19: 0 | BK19: 0 | BL19: 0 | BM19: 0 | BN19: 0 | BO19: 0 | BP19: 0 | BQ19: 0 | BR19: 0 | BS19: 0 | BT19: 0 | BU19: 0 | BV19: 0 | BW19: 0 | BX19: 0 | BY19: 0 | BZ19: 0 | CA19: 0 | CB19: 0 | CC19: 0 | CD19: 0 | CE19: 0 | CF19: 0 | CG19: 0 | CH19: 0 | CI19: 0 | CJ19: 0 | CK19: 0 | CL19: 0 | CM19: 0 | CN19: 0 | CO19: 0 | CP19: 0 | CQ19: 0 | CR19: 0 | CS19: 0 | CT19: 0 | CU19: 0 | CV19: 0
A20: 0 | B20: 0 | C20: 0 | D20: 0 | E20: 0 | F20: 0 | G20: 0 | H20: 0 | I20: 0 | J20: 0 | K20: 0 | L20: 0 | M20: 0 | N20: 0 | O20: 0 | P20: 0 | Q20: 0 | R20: 0 | S20: 0 | T20: 0 | U20: 0 | V20: 0 | W20: 0 | X20: 0 | Y20: 0 | Z20: 0 | AA20: 0 | AB20: 0 | AC20: 0 | AD20: 0 | AE20: 0 | AF20: 0 | AG20: 0 | AH20: 0 | AI20: 0 | AJ20: 0 | AK20: 0 | AL20: 0 | AM20: 0 | AN20: 0 | AO20: 0 | AP20: 0 | AQ20: 0 | AR20: 0 | AS20: 0 | AT20: 0 | AU20: 0 | AV20: 0 | AW20: 0 | AX20: 0 | AY20: 0 | AZ20: 0 | BA20: 0 | BB20: 0 | BC20: 0 | BD20: 0 | BE20: 0 | BF20: 0 | BG20: 0 | BH20: 0 | BI20: 0 | BJ20: 0 | BK20: 0 | BL20: 0 | BM20: 0 | BN20: 0 | BO20: 0 | BP20: 0 | BQ20: 0 | BR20: 0 | BS20: 0 | BT20: 0 | BU20: 0 | BV20: 0 | BW20: 0 | BX20: 0 | BY20: 0 | BZ20: 0 | CA20: 0 | CB20: 0 | CC20: 0 | CD20: 0 | CE20: 0 | CF20: 0 | CG20: 0 | CH20: 0 | CI20: 0 | CJ20: 0 | CK20: 0 | CL20: 0 | CM20: 0 | CN20: 0 | CO20: 0 | CP20: 0 | CQ20: 0 | CR20: 0 | CS20: 0 | CT20: 0 | CU20: 0 | CV20: 0
A21: =sampx(pop, popsize,newSample) -> 0 | B21: 0 | C21: 0 | D21: 0 | E21: 0 | F21: 0 | G21: 0 | H21: 0 | I21: 0 | J21: 0 | K21: =sampx(pop, popsize,newSample) -> 0 | L21: 0 | M21: 0 | N21: 0 | O21: 0 | P21: 0 | Q21: 0 | R21: 0 | S21: 0 | T21: 0 | U21: =sampx(pop, popsize,newSample) -> 0 | V21: 0 | W21: 0 | X21: 0 | Y21: 0 | Z21: 0 | AA21: 0 | AB21: 0 | AC21: 0 | AD21: 0 | AE21: =sampx(pop, popsize,newSample) -> 0 | AF21: 0 | AG21: 0 | AH21: 0 | AI21: 0 | AJ21: 0 | AK21: 0 | AL21: 0 | AM21: 0 | AN21: 0 | AO21: =sampx(pop, popsize,newSample) -> 0 | AP21: 0 | AQ21: 0 | AR21: 0 | AS21: 0 | AT21: 0 | AU21: 0 | AV21: 0 | AW21: 0 | AX21: 0 | AY21: =sampx(pop, popsize,newSample) -> 0 | AZ21: 0 | BA21: 0 | BB21: 0 | BC21: 0 | BD21: 0 | BE21: 0 | BF21: 0 | BG21: 0 | BH21: 0 | BI21: =sampx(pop, popsize,newSample) -> 0 | BJ21: 0 | BK21: 0 | BL21: 0 | BM21: 0 | BN21: 0 | BO21: 0 | BP21: 0 | BQ21: 0 | BR21: 0 | BS21: =sampx(pop, popsize,newSample) -> 0 | BT21: 0 | BU21: 0 | BV21: 0 | BW21: 0 | BX21: 0 | BY21: 0 | BZ21: 0 | CA21: 0 | CB21: 0 | CC21: 0 | CD21: 0 | CE21: 0 | CF21: 0 | CG21: 0 | CH21: 0 | CI21: 0 | CJ21: 0 | CK21: 0 | CL21: 0 | CM21: 0 | CN21: 0 | CO21: 0 | CP21: 0 | CQ21: 0 | CR21: 0 | CS21: 0 | CT21: 0 | CU21: 0 | CV21: 0
A22: 0 | B22: 0 | C22: 0 | D22: 0 | E22: 0 | F22: 0 | G22: 0 | H22: 0 | I22: 0 | J22: 0 | K22: 0 | L22: 0 | M22: 0 | N22: 0 | O22: 0 | P22: 0 | Q22: 0 | R22: 0 | S22: 0 | T22: 0 | U22: 0 | V22: 0 | W22: 0 | X22: 0 | Y22: 0 | Z22: 0 | AA22: 0 | AB22: 0 | AC22: 0 | AD22: 0 | AE22: 0 | AF22: 0 | AG22: 0 | AH22: 0 | AI22: 0 | AJ22: 0 | AK22: 0 | AL22: 0 | AM22: 0 | AN22: 0 | AO22: 0 | AP22: 0 | AQ22: 0 | AR22: 0 | AS22: 0 | AT22: 0 | AU22: 0 | AV22: 0 | AW22: 0 | AX22: 0 | AY22: 0 | AZ22: 0 | BA22: 0 | BB22: 0 | BC22: 0 | BD22: 0 | BE22: 0 | BF22: 0 | BG22: 0 | BH22: 0 | BI22: 0 | BJ22: 0 | BK22: 0 | BL22: 0 | BM22: 0 | BN22: 0 | BO22: 0 | BP22: 0 | BQ22: 0 | BR22: 0 | BS22: 0 | BT22: 0 | BU22: 0 | BV22: 0 | BW22: 0 | BX22: 0 | BY22: 0 | BZ22: 0 | CA22: 0 | CB22: 0 | CC22: 0 | CD22: 0 | CE22: 0 | CF22: 0 | CG22: 0 | CH22: 0 | CI22: 0 | CJ22: 0 | CK22: 0 | CL22: 0 | CM22: 0 | CN22: 0 | CO22: 0 | CP22: 0 | CQ22: 0 | CR22: 0 | CS22: 0 | CT22: 0 | CU22: 0 | CV22: 0
A23: 0 | B23: 0 | C23: 0 | D23: 0 | E23: 0 | F23: 0 | G23: 0 | H23: 0 | I23: 0 | J23: 0 | K23: 0 | L23: 0 | M23: 0 | N23: 0 | O23: 0 | P23: 0 | Q23: 0 | R23: 0 | S23: 0 | T23: 0 | U23: 0 | V23: 0 | W23: 0 | X23: 0 | Y23: 0 | Z23: 0 | AA23: 0 | AB23: 0 | AC23: 0 | AD23: 0 | AE23: 0 | AF23: 0 | AG23: 0 | AH23: 0 | AI23: 0 | AJ23: 0 | AK23: 0 | AL23: 0 | AM23: 0 | AN23: 0 | AO23: 0 | AP23: 0 | AQ23: 0 | AR23: 0 | AS23: 0 | AT23: 0 | AU23: 0 | AV23: 0 | AW23: 0 | AX23: 0 | AY23: 0 | AZ23: 0 | BA23: 0 | BB23: 0 | BC23: 0 | BD23: 0 | BE23: 0 | BF23: 0 | BG23: 0 | BH23: 0 | BI23: 0 | BJ23: 0 | BK23: 0 | BL23: 0 | BM23: 0 | BN23: 0 | BO23: 0 | BP23: 0 | BQ23: 0 | BR23: 0 | BS23: 0 | BT23: 0 | BU23: 0 | BV23: 0 | BW23: 0 | BX23: 0 | BY23: 0 | BZ23: 0 | CA23: 0 | CB23: 0 | CC23: 0 | CD23: 0 | CE23: 0 | CF23: 0 | CG23: 0 | CH23: 0 | CI23: 0 | CJ23: 0 | CK23: 0 | CL23: 0 | CM23: 0 | CN23: 0 | CO23: 0 | CP23: 0 | CQ23: 0 | CR23: 0 | CS23: 0 | CT23: 0 | CU23: 0 | CV23: 0
A24: 0 | B24: 0 | C24: 0 | D24: 0 | E24: 0 | F24: 0 | G24: 0 | H24: 0 | I24: 0 | J24: 0 | K24: 0 | L24: 0 | M24: 0 | N24: 0 | O24: 0 | P24: 0 | Q24: 0 | R24: 0 | S24: 0 | T24: 0 | U24: 0 | V24: 0 | W24: 0 | X24: 0 | Y24: 0 | Z24: 0 | AA24: 0 | AB24: 0 | AC24: 0 | AD24: 0 | AE24: 0 | AF24: 0 | AG24: 0 | AH24: 0 | AI24: 0 | AJ24: 0 | AK24: 0 | AL24: 0 | AM24: 0 | AN24: 0 | AO24: 0 | AP24: 0 | AQ24: 0 | AR24: 0 | AS24: 0 | AT24: 0 | AU24: 0 | AV24: 0 | AW24: 0 | AX24: 0 | AY24: 0 | AZ24: 0 | BA24: 0 | BB24: 0 | BC24: 0 | BD24: 0 | BE24: 0 | BF24: 0 | BG24: 0 | BH24: 0 | BI24: 0 | BJ24: 0 | BK24: 0 | BL24: 0 | BM24: 0 | BN24: 0 | BO24: 0 | BP24: 0 | BQ24: 0 | BR24: 0 | BS24: 0 | BT24: 0 | BU24: 0 | BV24: 0 | BW24: 0 | BX24: 0 | BY24: 0 | BZ24: 0 | CA24: 0 | CB24: 0 | CC24: 0 | CD24: 0 | CE24: 0 | CF24: 0 | CG24: 0 | CH24: 0 | CI24: 0 | CJ24: 0 | CK24: 0 | CL24: 0 | CM24: 0 | CN24: 0 | CO24: 0 | CP24: 0 | CQ24: 0 | CR24: 0 | CS24: 0 | CT24: 0 | CU24: 0 | CV24: 0
A25: 0 | B25: 0 | C25: 0 | D25: 0 | E25: 0 | F25: 0 | G25: 0 | H25: 0 | I25: 0 | J25: 0 | K25: 0 | L25: 0 | M25: 0 | N25: 0 | O25: 0 | P25: 0 | Q25: 0 | R25: 0 | S25: 0 | T25: 0 | U25: 0 | V25: 0 | W25: 0 | X25: 0 | Y25: 0 | Z25: 0 | AA25: 0 | AB25: 0 | AC25: 0 | AD25: 0 | AE25: 0 | AF25: 0 | AG25: 0 | AH25: 0 | AI25: 0 | AJ25: 0 | AK25: 0 | AL25: 0 | AM25: 0 | AN25: 0 | AO25: 0 | AP25: 0 | AQ25: 0 | AR25: 0 | AS25: 0 | AT25: 0 | AU25: 0 | AV25: 0 | AW25: 0 | AX25: 0 | AY25: 0 | AZ25: 0 | BA25: 0 | BB25: 0 | BC25: 0 | BD25: 0 | BE25: 0 | BF25: 0 | BG25: 0 | BH25: 0 | BI25: 0 | BJ25: 0 | BK25: 0 | BL25: 0 | BM25: 0 | BN25: 0 | BO25: 0 | BP25: 0 | BQ25: 0 | BR25: 0 | BS25: 0 | BT25: 0 | BU25: 0 | BV25: 0 | BW25: 0 | BX25: 0 | BY25: 0 | BZ25: 0 | CA25: 0 | CB25: 0 | CC25: 0 | CD25: 0 | CE25: 0 | CF25: 0 | CG25: 0 | CH25: 0 | CI25: 0 | CJ25: 0 | CK25: 0 | CL25: 0 | CM25: 0 | CN25: 0 | CO25: 0 | CP25: 0 | CQ25: 0 | CR25: 0 | CS25: 0 | CT25: 0 | CU25: 0 | CV25: 0
A26: 0 | B26: 0 | C26: 0 | D26: 0 | E26: 0 | F26: 0 | G26: 0 | H26: 0 | I26: 0 | J26: 0 | K26: 0 | L26: 0 | M26: 0 | N26: 0 | O26: 0 | P26: 0 | Q26: 0 | R26: 0 | S26: 0 | T26: 0 | U26: 0 | V26: 0 | W26: 0 | X26: 0 | Y26: 0 | Z26: 0 | AA26: 0 | AB26: 0 | AC26: 0 | AD26: 0 | AE26: 0 | AF26: 0 | AG26: 0 | AH26: 0 | AI26: 0 | AJ26: 0 | AK26: 0 | AL26: 0 | AM26: 0 | AN26: 0 | AO26: 0 | AP26: 0 | AQ26: 0 | AR26: 0 | AS26: 0 | AT26: 0 | AU26: 0 | AV26: 0 | AW26: 0 | AX26: 0 | AY26: 0 | AZ26: 0 | BA26: 0 | BB26: 0 | BC26: 0 | BD26: 0 | BE26: 0 | BF26: 0 | BG26: 0 | BH26: 0 | BI26: 0 | BJ26: 0 | BK26: 0 | BL26: 0 | BM26: 0 | BN26: 0 | BO26: 0 | BP26: 0 | BQ26: 0 | BR26: 0 | BS26: 0 | BT26: 0 | BU26: 0 | BV26: 0 | BW26: 0 | BX26: 0 | BY26: 0 | BZ26: 0 | CA26: 0 | CB26: 0 | CC26: 0 | CD26: 0 | CE26: 0 | CF26: 0 | CG26: 0 | CH26: 0 | CI26: 0 | CJ26: 0 | CK26: 0 | CL26: 0 | CM26: 0 | CN26: 0 | CO26: 0 | CP26: 0 | CQ26: 0 | CR26: 0 | CS26: 0 | CT26: 0 | CU26: 0 | CV26: 0
A27: 0 | B27: 0 | C27: 0 | D27: 0 | E27: 0 | F27: 0 | G27: 0 | H27: 0 | I27: 0 | J27: 0 | K27: 0 | L27: 0 | M27: 0 | N27: 0 | O27: 0 | P27: 0 | Q27: 0 | R27: 0 | S27: 0 | T27: 0 | U27: 0 | V27: 0 | W27: 0 | X27: 0 | Y27: 0 | Z27: 0 | AA27: 0 | AB27: 0 | AC27: 0 | AD27: 0 | AE27: 0 | AF27: 0 | AG27: 0 | AH27: 0 | AI27: 0 | AJ27: 0 | AK27: 0 | AL27: 0 | AM27: 0 | AN27: 0 | AO27: 0 | AP27: 0 | AQ27: 0 | AR27: 0 | AS27: 0 | AT27: 0 | AU27: 0 | AV27: 0 | AW27: 0 | AX27: 0 | AY27: 0 | AZ27: 0 | BA27: 0 | BB27: 0 | BC27: 0 | BD27: 0 | BE27: 0 | BF27: 0 | BG27: 0 | BH27: 0 | BI27: 0 | BJ27: 0 | BK27: 0 | BL27: 0 | BM27: 0 | BN27: 0 | BO27: 0 | BP27: 0 | BQ27: 0 | BR27: 0 | BS27: 0 | BT27: 0 | BU27: 0 | BV27: 0 | BW27: 0 | BX27: 0 | BY27: 0 | BZ27: 0 | CA27: 0 | CB27: 0 | CC27: 0 | CD27: 0 | CE27: 0 | CF27: 0 | CG27: 0 | CH27: 0 | CI27: 0 | CJ27: 0 | CK27: =sampx(pop, popsize,newSample) -> 0 | CL27: 0 | CM27: 0 | CN27: 0 | CO27: 0 | CP27: 0 | CQ27: 0 | CR27: 0 | CS27: 0 | CT27: 0 | CU27: 0 | CV27: 0
A28: 0 | B28: 0 | C28: 0 | D28: 0 | E28: 0 | F28: 0 | G28: 0 | H28: 0 | I28: 0 | J28: 0 | K28: 0 | L28: 0 | M28: 0 | N28: 0 | O28: 0 | P28: 0 | Q28: 0 | R28: 0 | S28: 0 | T28: 0 | U28: 0 | V28: 0 | W28: 0 | X28: 0 | Y28: 0 | Z28: 0 | AA28: 0 | AB28: 0 | AC28: 0 | AD28: 0 | AE28: 0 | AF28: 0 | AG28: 0 | AH28: 0 | AI28: 0 | AJ28: 0 | AK28: 0 | AL28: 0 | AM28: 0 | AN28: 0 | AO28: 0 | AP28: 0 | AQ28: 0 | AR28: 0 | AS28: 0 | AT28: 0 | AU28: 0 | AV28: 0 | AW28: 0 | AX28: 0 | AY28: 0 | AZ28: 0 | BA28: 0 | BB28: 0 | BC28: 0 | BD28: 0 | BE28: 0 | BF28: 0 | BG28: 0 | BH28: 0 | BI28: 0 | BJ28: 0 | BK28: 0 | BL28: 0 | BM28: 0 | BN28: 0 | BO28: 0 | BP28: 0 | BQ28: 0 | BR28: 0 | BS28: 0 | BT28: 0 | BU28: 0 | BV28: 0 | BW28: 0 | BX28: 0 | BY28: 0 | BZ28: 0 | CA28: 0 | CB28: 0 | CC28: 0 | CD28: 0 | CE28: 0 | CF28: 0 | CG28: 0 | CH28: 0 | CI28: 0 | CJ28: 0 | CK28: 0 | CL28: 0 | CM28: 0 | CN28: 0 | CO28: 0 | CP28: 0 | CQ28: 0 | CR28: 0 | CS28: 0 | CT28: 0 | CU28: 0 | CV28: 0
A29: 0 | B29: 0 | C29: 0 | D29: 0 | E29: 0 | F29: 0 | G29: 0 | H29: 0 | I29: 0 | J29: 0 | K29: 0 | L29: 0 | M29: 0 | N29: 0 | O29: 0 | P29: 0 | Q29: 0 | R29: 0 | S29: 0 | T29: 0 | U29: 0 | V29: 0 | W29: 0 | X29: 0 | Y29: 0 | Z29: 0 | AA29: 0 | AB29: 0 | AC29: 0 | AD29: 0 | AE29: 0 | AF29: 0 | AG29: 0 | AH29: 0 | AI29: 0 | AJ29: 0 | AK29: 0 | AL29: 0 | AM29: 0 | AN29: 0 | AO29: 0 | AP29: 0 | AQ29: 0 | AR29: 0 | AS29: 0 | AT29: 0 | AU29: 0 | AV29: 0 | AW29: 0 | AX29: 0 | AY29: 0 | AZ29: 0 | BA29: 0 | BB29: 0 | BC29: 0 | BD29: 0 | BE29: 0 | BF29: 0 | BG29: 0 | BH29: 0 | BI29: 0 | BJ29: 0 | BK29: 0 | BL29: 0 | BM29: 0 | BN29: 0 | BO29: 0 | BP29: 0 | BQ29: 0 | BR29: 0 | BS29: 0 | BT29: 0 | BU29: 0 | BV29: 0 | BW29: 0 | BX29: 0 | BY29: 0 | BZ29: 0 | CA29: 0 | CB29: 0 | CC29: 0 | CD29: 0 | CE29: 0 | CF29: 0 | CG29: 0 | CH29: 0 | CI29: 0 | CJ29: 0 | CK29: 0 | CL29: 0 | CM29: 0 | CN29: 0 | CO29: 0 | CP29: 0 | CQ29: 0 | CR29: 0 | CS29: 0 | CT29: 0 | CU29: 0 | CV29: 0
A30: 0 | B30: 0 | C30: 0 | D30: 0 | E30: 0 | F30: 0 | G30: 0 | H30: 0 | I30: 0 | J30: 0 | K30: 0 | L30: 0 | M30: 0 | N30: 0 | O30: 0 | P30: 0 | Q30: 0 | R30: 0 | S30: 0 | T30: 0 | U30: 0 | V30: 0 | W30: 0 | X30: 0 | Y30: 0 | Z30: 0 | AA30: 0 | AB30: 0 | AC30: 0 | AD30: 0 | AE30: 0 | AF30: 0 | AG30: 0 | AH30: 0 | AI30: 0 | AJ30: 0 | AK30: 0 | AL30: 0 | AM30: 0 | AN30: 0 | AO30: 0 | AP30: 0 | AQ30: 0 | AR30: 0 | AS30: 0 | AT30: 0 | AU30: 0 | AV30: 0 | AW30: 0 | AX30: 0 | AY30: 0 | AZ30: 0 | BA30: 0 | BB30: 0 | BC30: 0 | BD30: 0 | BE30: 0 | BF30: 0 | BG30: 0 | BH30: 0 | BI30: 0 | BJ30: 0 | BK30: 0 | BL30: 0 | BM30: 0 | BN30: 0 | BO30: 0 | BP30: 0 | BQ30: 0 | BR30: 0 | BS30: 0 | BT30: 0 | BU30: 0 | BV30: 0 | BW30: 0 | BX30: 0 | BY30: 0 | BZ30: 0 | CA30: 0 | CB30: 0 | CC30: 0 | CD30: 0 | CE30: 0 | CF30: 0 | CG30: 0 | CH30: 0 | CI30: 0 | CJ30: 0 | CK30: 0 | CL30: 0 | CM30: 0 | CN30: 0 | CO30: 0 | CP30: 0 | CQ30: 0 | CR30: 0 | CS30: 0 | CT30: 0 | CU30: 0 | CV30: 0
A31: =sampx(pop, popsize,newSample) -> 0 | B31: 0 | C31: 0 | D31: 0 | E31: 0 | F31: 0 | G31: 0 | H31: 0 | I31: 0 | J31: 0 | K31: =sampx(pop, popsize,newSample) -> 0 | L31: 0 | M31: 0 | N31: 0 | O31: 0 | P31: 0 | Q31: 0 | R31: 0 | S31: 0 | T31: 0 | U31: =sampx(pop, popsize,newSample) -> 0 | V31: 0 | W31: 0 | X31: 0 | Y31: 0 | Z31: 0 | AA31: 0 | AB31: 0 | AC31: 0 | AD31: 0 | AE31: =sampx(pop, popsize,newSample) -> 0 | AF31: 0 | AG31: 0 | AH31: 0 | AI31: 0 | AJ31: 0 | AK31: 0 | AL31: 0 | AM31: 0 | AN31: 0 | AO31: =sampx(pop, popsize,newSample) -> 0 | AP31: 0 | AQ31: 0 | AR31: 0 | AS31: 0 | AT31: 0 | AU31: 0 | AV31: 0 | AW31: 0 | AX31: 0 | AY31: =sampx(pop, popsize,newSample) -> 0 | AZ31: 0 | BA31: 0 | BB31: 0 | BC31: 0 | BD31: 0 | BE31: 0 | BF31: 0 | BG31: 0 | BH31: 0 | BI31: =sampx(pop, popsize,newSample) -> 0 | BJ31: 0 | BK31: 0 | BL31: 0 | BM31: 0 | BN31: 0 | BO31: 0 | BP31: 0 | BQ31: 0 | BR31: 0 | BS31: =sampx(pop, popsize,newSample) -> 0 | BT31: 0 | BU31: 0 | BV31: 0 | BW31: 0 | BX31: 0 | BY31: 0 | BZ31: 0 | CA31: 0 | CB31: 0 | CC31: 0 | CD31: 0 | CE31: 0 | CF31: 0 | CG31: 0 | CH31: 0 | CI31: 0 | CJ31: 0 | CK31: 0 | CL31: 0 | CM31: 0 | CN31: 0 | CO31: 0 | CP31: 0 | CQ31: 0 | CR31: 0 | CS31: 0 | CT31: 0 | CU31: 0 | CV31: 0
A32: 0 | B32: 0 | C32: 0 | D32: 0 | E32: 0 | F32: 0 | G32: 0 | H32: 0 | I32: 0 | J32: 0 | K32: 0 | L32: 0 | M32: 0 | N32: 0 | O32: 0 | P32: 0 | Q32: 0 | R32: 0 | S32: 0 | T32: 0 | U32: 0 | V32: 0 | W32: 0 | X32: 0 | Y32: 0 | Z32: 0 | AA32: 0 | AB32: 0 | AC32: 0 | AD32: 0 | AE32: 0 | AF32: 0 | AG32: 0 | AH32: 0 | AI32: 0 | AJ32: 0 | AK32: 0 | AL32: 0 | AM32: 0 | AN32: 0 | AO32: 0 | AP32: 0 | AQ32: 0 | AR32: 0 | AS32: 0 | AT32: 0 | AU32: 0 | AV32: 0 | AW32: 0 | AX32: 0 | AY32: 0 | AZ32: 0 | BA32: 0 | BB32: 0 | BC32: 0 | BD32: 0 | BE32: 0 | BF32: 0 | BG32: 0 | BH32: 0 | BI32: 0 | BJ32: 0 | BK32: 0 | BL32: 0 | BM32: 0 | BN32: 0 | BO32: 0 | BP32: 0 | BQ32: 0 | BR32: 0 | BS32: 0 | BT32: 0 | BU32: 0 | BV32: 0 | BW32: 0 | BX32: 0 | BY32: 0 | BZ32: 0 | CA32: 0 | CB32: 0 | CC32: 0 | CD32: 0 | CE32: 0 | CF32: 0 | CG32: 0 | CH32: 0 | CI32: 0 | CJ32: 0 | CK32: 0 | CL32: 0 | CM32: 0 | CN32: 0 | CO32: 0 | CP32: 0 | CQ32: 0 | CR32: 0 | CS32: 0 | CT32: 0 | CU32: 0 | CV32: 0
A33: 0 | B33: 0 | C33: 0 | D33: 0 | E33: 0 | F33: 0 | G33: 0 | H33: 0 | I33: 0 | J33: 0 | K33: 0 | L33: 0 | M33: 0 | N33: 0 | O33: 0 | P33: 0 | Q33: 0 | R33: 0 | S33: 0 | T33: 0 | U33: 0 | V33: 0 | W33: 0 | X33: 0 | Y33: 0 | Z33: 0 | AA33: 0 | AB33: 0 | AC33: 0 | AD33: 0 | AE33: 0 | AF33: 0 | AG33: 0 | AH33: 0 | AI33: 0 | AJ33: 0 | AK33: 0 | AL33: 0 | AM33: 0 | AN33: 0 | AO33: 0 | AP33: 0 | AQ33: 0 | AR33: 0 | AS33: 0 | AT33: 0 | AU33: 0 | AV33: 0 | AW33: 0 | AX33: 0 | AY33: 0 | AZ33: 0 | BA33: 0 | BB33: 0 | BC33: 0 | BD33: 0 | BE33: 0 | BF33: 0 | BG33: 0 | BH33: 0 | BI33: 0 | BJ33: 0 | BK33: 0 | BL33: 0 | BM33: 0 | BN33: 0 | BO33: 0 | BP33: 0 | BQ33: 0 | BR33: 0 | BS33: 0 | BT33: 0 | BU33: 0 | BV33: 0 | BW33: 0 | BX33: 0 | BY33: 0 | BZ33: 0 | CA33: 0 | CB33: 0 | CC33: 0 | CD33: 0 | CE33: 0 | CF33: 0 | CG33: 0 | CH33: 0 | CI33: 0 | CJ33: 0 | CK33: 0 | CL33: 0 | CM33: 0 | CN33: 0 | CO33: 0 | CP33: 0 | CQ33: 0 | CR33: 0 | CS33: 0 | CT33: 0 | CU33: 0 | CV33: 0
A34: 0 | B34: 0 | C34: 0 | D34: 0 | E34: 0 | F34: 0 | G34: 0 | H34: 0 | I34: 0 | J34: 0 | K34: 0 | L34: 0 | M34: 0 | N34: 0 | O34: 0 | P34: 0 | Q34: 0 | R34: 0 | S34: 0 | T34: 0 | U34: 0 | V34: 0 | W34: 0 | X34: 0 | Y34: 0 | Z34: 0 | AA34: 0 | AB34: 0 | AC34: 0 | AD34: 0 | AE34: 0 | AF34: 0 | AG34: 0 | AH34: 0 | AI34: 0 | AJ34: 0 | AK34: 0 | AL34: 0 | AM34: 0 | AN34: 0 | AO34: 0 | AP34: 0 | AQ34: 0 | AR34: 0 | AS34: 0 | AT34: 0 | AU34: 0 | AV34: 0 | AW34: 0 | AX34: 0 | AY34: 0 | AZ34: 0 | BA34: 0 | BB34: 0 | BC34: 0 | BD34: 0 | BE34: 0 | BF34: 0 | BG34: 0 | BH34: 0 | BI34: 0 | BJ34: 0 | BK34: 0 | BL34: 0 | BM34: 0 | BN34: 0 | BO34: 0 | BP34: 0 | BQ34: 0 | BR34: 0 | BS34: 0 | BT34: 0 | BU34: 0 | BV34: 0 | BW34: 0 | BX34: 0 | BY34: 0 | BZ34: 0 | CA34: 0 | CB34: 0 | CC34: 0 | CD34: 0 | CE34: 0 | CF34: 0 | CG34: 0 | CH34: 0 | CI34: 0 | CJ34: 0 | CK34: 0 | CL34: 0 | CM34: 0 | CN34: 0 | CO34: 0 | CP34: 0 | CQ34: 0 | CR34: 0 | CS34: 0 | CT34: 0 | CU34: 0 | CV34: 0
A35: 0 | B35: 0 | C35: 0 | D35: 0 | E35: 0 | F35: 0 | G35: 0 | H35: 0 | I35: 0 | J35: 0 | K35: 0 | L35: 0 | M35: 0 | N35: 0 | O35: 0 | P35: 0 | Q35: 0 | R35: 0 | S35: 0 | T35: 0 | U35: 0 | V35: 0 | W35: 0 | X35: 0 | Y35: 0 | Z35: 0 | AA35: 0 | AB35: 0 | AC35: 0 | AD35: 0 | AE35: 0 | AF35: 0 | AG35: 0 | AH35: 0 | AI35: 0 | AJ35: 0 | AK35: 0 | AL35: 0 | AM35: 0 | AN35: 0 | AO35: 0 | AP35: 0 | AQ35: 0 | AR35: 0 | AS35: 0 | AT35: 0 | AU35: 0 | AV35: 0 | AW35: 0 | AX35: 0 | AY35: 0 | AZ35: 0 | BA35: 0 | BB35: 0 | BC35: 0 | BD35: 0 | BE35: 0 | BF35: 0 | BG35: 0 | BH35: 0 | BI35: 0 | BJ35: 0 | BK35: 0 | BL35: 0 | BM35: 0 | BN35: 0 | BO35: 0 | BP35: 0 | BQ35: 0 | BR35: 0 | BS35: 0 | BT35: 0 | BU35: 0 | BV35: 0 | BW35: 0 | BX35: 0 | BY35: 0 | BZ35: 0 | CA35: 0 | CB35: 0 | CC35: 0 | CD35: 0 | CE35: 0 | CF35: 0 | CG35: 0 | CH35: 0 | CI35: 0 | CJ35: 0 | CK35: 0 | CL35: 0 | CM35: 0 | CN35: 0 | CO35: 0 | CP35: 0 | CQ35: 0 | CR35: 0 | CS35: 0 | CT35: 0 | CU35: 0 | CV35: 0
A36: 0 | B36: 0 | C36: 0 | D36: 0 | E36: 0 | F36: 0 | G36: 0 | H36: 0 | I36: 0 | J36: 0 | K36: 0 | L36: 0 | M36: 0 | N36: 0 | O36: 0 | P36: 0 | Q36: 0 | R36: 0 | S36: 0 | T36: 0 | U36: 0 | V36: 0 | W36: 0 | X36: 0 | Y36: 0 | Z36: 0 | AA36: 0 | AB36: 0 | AC36: 0 | AD36: 0 | AE36: 0 | AF36: 0 | AG36: 0 | AH36: 0 | AI36: 0 | AJ36: 0 | AK36: 0 | AL36: 0 | AM36: 0 | AN36: 0 | AO36: 0 | AP36: 0 | AQ36: 0 | AR36: 0 | AS36: 0 | AT36: 0 | AU36: 0 | AV36: 0 | AW36: 0 | AX36: 0 | AY36: 0 | AZ36: 0 | BA36: 0 | BB36: 0 | BC36: 0 | BD36: 0 | BE36: 0 | BF36: 0 | BG36: 0 | BH36: 0 | BI36: 0 | BJ36: 0 | BK36: 0 | BL36: 0 | BM36: 0 | BN36: 0 | BO36: 0 | BP36: 0 | BQ36: 0 | BR36: 0 | BS36: 0 | BT36: 0 | BU36: 0 | BV36: 0 | BW36: 0 | BX36: 0 | BY36: 0 | BZ36: 0 | CA36: 0 | CB36: 0 | CC36: 0 | CD36: 0 | CE36: 0 | CF36: 0 | CG36: 0 | CH36: 0 | CI36: 0 | CJ36: 0 | CK36: 0 | CL36: 0 | CM36: 0 | CN36: 0 | CO36: 0 | CP36: 0 | CQ36: 0 | CR36: 0 | CS36: 0 | CT36: 0 | CU36: 0 | CV36: 0
A37: 0 | B37: 0 | C37: 0 | D37: 0 | E37: 0 | F37: 0 | G37: 0 | H37: 0 | I37: 0 | J37: 0 | K37: 0 | L37: 0 | M37: 0 | N37: 0 | O37: 0 | P37: 0 | Q37: 0 | R37: 0 | S37: 0 | T37: 0 | U37: 0 | V37: 0 | W37: 0 | X37: 0 | Y37: 0 | Z37: 0 | AA37: 0 | AB37: 0 | AC37: 0 | AD37: 0 | AE37: 0 | AF37: 0 | AG37: 0 | AH37: 0 | AI37: 0 | AJ37: 0 | AK37: 0 | AL37: 0 | AM37: 0 | AN37: 0 | AO37: 0 | AP37: 0 | AQ37: 0 | AR37: 0 | AS37: 0 | AT37: 0 | AU37: 0 | AV37: 0 | AW37: 0 | AX37: 0 | AY37: 0 | AZ37: 0 | BA37: 0 | BB37: 0 | BC37: 0 | BD37: 0 | BE37: 0 | BF37: 0 | BG37: 0 | BH37: 0 | BI37: 0 | BJ37: 0 | BK37: 0 | BL37: 0 | BM37: 0 | BN37: 0 | BO37: 0 | BP37: 0 | BQ37: 0 | BR37: 0 | BS37: 0 | BT37: 0 | BU37: 0 | BV37: 0 | BW37: 0 | BX37: 0 | BY37: 0 | BZ37: 0 | CA37: 0 | CB37: 0 | CC37: 0 | CD37: 0 | CE37: 0 | CF37: 0 | CG37: 0 | CH37: 0 | CI37: 0 | CJ37: 0 | CK37: 0 | CL37: 0 | CM37: 0 | CN37: 0 | CO37: 0 | CP37: 0 | CQ37: 0 | CR37: 0 | CS37: 0 | CT37: 0 | CU37: 0 | CV37: 0
A38: 0 | B38: 0 | C38: 0 | D38: 0 | E38: 0 | F38: 0 | G38: 0 | H38: 0 | I38: 0 | J38: 0 | K38: 0 | L38: 0 | M38: 0 | N38: 0 | O38: 0 | P38: 0 | Q38: 0 | R38: 0 | S38: 0 | T38: 0 | U38: 0 | V38: 0 | W38: 0 | X38: 0 | Y38: 0 | Z38: 0 | AA38: 0 | AB38: 0 | AC38: 0 | AD38: 0 | AE38: 0 | AF38: 0 | AG38: 0 | AH38: 0 | AI38: 0 | AJ38: 0 | AK38: 0 | AL38: 0 | AM38: 0 | AN38: 0 | AO38: 0 | AP38: 0 | AQ38: 0 | AR38: 0 | AS38: 0 | AT38: 0 | AU38: 0 | AV38: 0 | AW38: 0 | AX38: 0 | AY38: 0 | AZ38: 0 | BA38: 0 | BB38: 0 | BC38: 0 | BD38: 0 | BE38: 0 | BF38: 0 | BG38: 0 | BH38: 0 | BI38: 0 | BJ38: 0 | BK38: 0 | BL38: 0 | BM38: 0 | BN38: 0 | BO38: 0 | BP38: 0 | BQ38: 0 | BR38: 0 | BS38: 0 | BT38: 0 | BU38: 0 | BV38: 0 | BW38: 0 | BX38: 0 | BY38: 0 | BZ38: 0 | CA38: 0 | CB38: 0 | CC38: 0 | CD38: 0 | CE38: 0 | CF38: 0 | CG38: 0 | CH38: 0 | CI38: 0 | CJ38: 0 | CK38: 0 | CL38: 0 | CM38: 0 | CN38: 0 | CO38: 0 | CP38: 0 | CQ38: 0 | CR38: 0 | CS38: 0 | CT38: 0 | CU38: 0 | CV38: 0
A39: 0 | B39: 0 | C39: 0 | D39: 0 | E39: 0 | F39: 0 | G39: 0 | H39: 0 | I39: 0 | J39: 0 | K39: 0 | L39: 0 | M39: 0 | N39: 0 | O39: 0 | P39: 0 | Q39: 0 | R39: 0 | S39: 0 | T39: 0 | U39: 0 | V39: 0 | W39: 0 | X39: 0 | Y39: 0 | Z39: 0 | AA39: 0 | AB39: 0 | AC39: 0 | AD39: 0 | AE39: 0 | AF39: 0 | AG39: 0 | AH39: 0 | AI39: 0 | AJ39: 0 | AK39: 0 | AL39: 0 | AM39: 0 | AN39: 0 | AO39: 0 | AP39: 0 | AQ39: 0 | AR39: 0 | AS39: 0 | AT39: 0 | AU39: 0 | AV39: 0 | AW39: 0 | AX39: 0 | AY39: 0 | AZ39: 0 | BA39: 0 | BB39: 0 | BC39: 0 | BD39: 0 | BE39: 0 | BF39: 0 | BG39: 0 | BH39: 0 | BI39: 0 | BJ39: 0 | BK39: 0 | BL39: 0 | BM39: 0 | BN39: 0 | BO39: 0 | BP39: 0 | BQ39: 0 | BR39: 0 | BS39: 0 | BT39: 0 | BU39: 0 | BV39: 0 | BW39: 0 | BX39: 0 | BY39: 0 | BZ39: 0 | CA39: 0 | CB39: 0 | CC39: 0 | CD39: 0 | CE39: 0 | CF39: 0 | CG39: 0 | CH39: 0 | CI39: 0 | CJ39: 0 | CK39: 0 | CL39: 0 | CM39: 0 | CN39: 0 | CO39: 0 | CP39: 0 | CQ39: 0 | CR39: 0 | CS39: 0 | CT39: 0 | CU39: 0 | CV39: 0
A40: 0 | B40: 0 | C40: 0 | D40: 0 | E40: 0 | F40: 0 | G40: 0 | H40: 0 | I40: 0 | J40: 0 | K40: 0 | L40: 0 | M40: 0 | N40: 0 | O40: 0 | P40: 0 | Q40: 0 | R40: 0 | S40: 0 | T40: 0 | U40: 0 | V40: 0 | W40: 0 | X40: 0 | Y40: 0 | Z40: 0 | AA40: 0 | AB40: 0 | AC40: 0 | AD40: 0 | AE40: 0 | AF40: 0 | AG40: 0 | AH40: 0 | AI40: 0 | AJ40: 0 | AK40: 0 | AL40: 0 | AM40: 0 | AN40: 0 | AO40: 0 | AP40: 0 | AQ40: 0 | AR40: 0 | AS40: 0 | AT40: 0 | AU40: 0 | AV40: 0 | AW40: 0 | AX40: 0 | AY40: 0 | AZ40: 0 | BA40: 0 | BB40: 0 | BC40: 0 | BD40: 0 | BE40: 0 | BF40: 0 | BG40: 0 | BH40: 0 | BI40: 0 | BJ40: 0 | BK40: 0 | BL40: 0 | BM40: 0 | BN40: 0 | BO40: 0 | BP40: 0 | BQ40: 0 | BR40: 0 | BS40: 0 | BT40: 0 | BU40: 0 | BV40: 0 | BW40: 0 | BX40: 0 | BY40: 0 | BZ40: 0 | CA40: 0 | CB40: 0 | CC40: 0 | CD40: 0 | CE40: 0 | CF40: 0 | CG40: 0 | CH40: 0 | CI40: 0 | CJ40: 0 | CK40: 0 | CL40: =sampx(pop, popsize,newSample) -> 0 | CM40: 0 | CN40: 0 | CO40: 0 | CP40: 0 | CQ40: 0 | CR40: 0 | CS40: 0 | CT40: 0 | CU40: 0 | CV40: 0
A41: =sampx(pop, popsize,newSample) -> 0 | B41: 0 | C41: 0 | D41: 0 | E41: 0 | F41: 0 | G41: 0 | H41: 0 | I41: 0 | J41: 0 | K41: =sampx(pop, popsize,newSample) -> 0 | L41: 0 | M41: 0 | N41: 0 | O41: 0 | P41: 0 | Q41: 0 | R41: 0 | S41: 0 | T41: 0 | U41: =sampx(pop, popsize,newSample) -> 0 | V41: 0 | W41: 0 | X41: 0 | Y41: 0 | Z41: 0 | AA41: 0 | AB41: 0 | AC41: 0 | AD41: 0 | AE41: =sampx(pop, popsize,newSample) -> 0 | AF41: 0 | AG41: 0 | AH41: 0 | AI41: 0 | AJ41: 0 | AK41: 0 | AL41: 0 | AM41: 0 | AN41: 0 | AO41: =sampx(pop, popsize,newSample) -> 0 | AP41: 0 | AQ41: 0 | AR41: 0 | AS41: 0 | AT41: 0 | AU41: 0 | AV41: 0 | AW41: 0 | AX41: 0 | AY41: =sampx(pop, popsize,newSample) -> 0 | AZ41: 0 | BA41: 0 | BB41: 0 | BC41: 0 | BD41: 0 | BE41: 0 | BF41: 0 | BG41: 0 | BH41: 0 | BI41: =sampx(pop, popsize,newSample) -> 0 | BJ41: 0 | BK41: 0 | BL41: 0 | BM41: 0 | BN41: 0 | BO41: 0 | BP41: 0 | BQ41: 0 | BR41: 0 | BS41: =sampx(pop, popsize,newSample) -> 0 | BT41: 0 | BU41: 0 | BV41: 0 | BW41: 0 | BX41: 0 | BY41: 0 | BZ41: 0 | CA41: 0 | CB41: 0 | CC41: 0 | CD41: 0 | CE41: 0 | CF41: 0 | CG41: 0 | CH41: 0 | CI41: =sampx(pop, popsize,newSample) -> 0 | CJ41: 0 | CK41: 0 | CL41: 0 | CM41: 0 | CN41: 0 | CO41: 0 | CP41: 0 | CQ41: 0 | CR41: 0 | CS41: 0 | CT41: 0 | CU41: 0 | CV41: 0
A42: 0 | B42: 0 | C42: 0 | D42: 0 | E42: 0 | F42: 0 | G42: 0 | H42: 0 | I42: 0 | J42: 0 | K42: 0 | L42: 0 | M42: 0 | N42: 0 | O42: 0 | P42: 0 | Q42: 0 | R42: 0 | S42: 0 | T42: 0 | U42: 0 | V42: 0 | W42: 0 | X42: 0 | Y42: 0 | Z42: 0 | AA42: 0 | AB42: 0 | AC42: 0 | AD42: 0 | AE42: 0 | AF42: 0 | AG42: 0 | AH42: 0 | AI42: 0 | AJ42: 0 | AK42: 0 | AL42: 0 | AM42: 0 | AN42: 0 | AO42: 0 | AP42: 0 | AQ42: 0 | AR42: 0 | AS42: 0 | AT42: 0 | AU42: 0 | AV42: 0 | AW42: 0 | AX42: 0 | AY42: 0 | AZ42: 0 | BA42: 0 | BB42: 0 | BC42: 0 | BD42: 0 | BE42: 0 | BF42: 0 | BG42: 0 | BH42: 0 | BI42: 0 | BJ42: 0 | BK42: 0 | BL42: 0 | BM42: 0 | BN42: 0 | BO42: 0 | BP42: 0 | BQ42: 0 | BR42: 0 | BS42: 0 | BT42: 0 | BU42: 0 | BV42: 0 | BW42: 0 | BX42: 0 | BY42: 0 | BZ42: 0 | CA42: 0 | CB42: 0 | CC42: 0 | CD42: 0 | CE42: 0 | CF42: 0 | CG42: 0 | CH42: 0 | CI42: 0 | CJ42: 0 | CK42: 0 | CL42: 0 | CM42: 0 | CN42: 0 | CO42: 0 | CP42: 0 | CQ42: 0 | CR42: 0 | CS42: 0 | CT42: 0 | CU42: 0 | CV42: 0
A43: 0 | B43: 0 | C43: 0 | D43: 0 | E43: 0 | F43: 0 | G43: 0 | H43: 0 | I43: 0 | J43: 0 | K43: 0 | L43: 0 | M43: 0 | N43: 0 | O43: 0 | P43: 0 | Q43: 0 | R43: 0 | S43: 0 | T43: 0 | U43: 0 | V43: 0 | W43: 0 | X43: 0 | Y43: 0 | Z43: 0 | AA43: 0 | AB43: 0 | AC43: 0 | AD43: 0 | AE43: 0 | AF43: 0 | AG43: 0 | AH43: 0 | AI43: 0 | AJ43: 0 | AK43: 0 | AL43: 0 | AM43: 0 | AN43: 0 | AO43: 0 | AP43: 0 | AQ43: 0 | AR43: 0 | AS43: 0 | AT43: 0 | AU43: 0 | AV43: 0 | AW43: 0 | AX43: 0 | AY43: 0 | AZ43: 0 | BA43: 0 | BB43: 0 | BC43: 0 | BD43: 0 | BE43: 0 | BF43: 0 | BG43: 0 | BH43: 0 | BI43: 0 | BJ43: 0 | BK43: 0 | BL43: 0 | BM43: 0 | BN43: 0 | BO43: 0 | BP43: 0 | BQ43: 0 | BR43: 0 | BS43: 0 | BT43: 0 | BU43: 0 | BV43: 0 | BW43: 0 | BX43: 0 | BY43: 0 | BZ43: 0 | CA43: 0 | CB43: 0 | CC43: 0 | CD43: 0 | CE43: 0 | CF43: 0 | CG43: 0 | CH43: 0 | CI43: 0 | CJ43: 0 | CK43: 0 | CL43: 0 | CM43: 0 | CN43: 0 | CO43: 0 | CP43: 0 | CQ43: 0 | CR43: 0 | CS43: 0 | CT43: 0 | CU43: 0 | CV43: 0
A44: 0 | B44: 0 | C44: 0 | D44: 0 | E44: 0 | F44: 0 | G44: 0 | H44: 0 | I44: 0 | J44: 0 | K44: 0 | L44: 0 | M44: 0 | N44: 0 | O44: 0 | P44: 0 | Q44: 0 | R44: 0 | S44: 0 | T44: 0 | U44: 0 | V44: 0 | W44: 0 | X44: 0 | Y44: 0 | Z44: 0 | AA44: 0 | AB44: 0 | AC44: 0 | AD44: 0 | AE44: 0 | AF44: 0 | AG44: 0 | AH44: 0 | AI44: 0 | AJ44: 0 | AK44: 0 | AL44: 0 | AM44: 0 | AN44: 0 | AO44: 0 | AP44: 0 | AQ44: 0 | AR44: 0 | AS44: 0 | AT44: 0 | AU44: 0 | AV44: 0 | AW44: 0 | AX44: 0 | AY44: 0 | AZ44: 0 | BA44: 0 | BB44: 0 | BC44: 0 | BD44: 0 | BE44: 0 | BF44: 0 | BG44: 0 | BH44: 0 | BI44: 0 | BJ44: 0 | BK44: 0 | BL44: 0 | BM44: 0 | BN44: 0 | BO44: 0 | BP44: 0 | BQ44: 0 | BR44: 0 | BS44: 0 | BT44: 0 | BU44: 0 | BV44: 0 | BW44: 0 | BX44: 0 | BY44: 0 | BZ44: 0 | CA44: 0 | CB44: 0 | CC44: 0 | CD44: 0 | CE44: 0 | CF44: 0 | CG44: 0 | CH44: 0 | CI44: 0 | CJ44: 0 | CK44: 0 | CL44: 0 | CM44: 0 | CN44: 0 | CO44: 0 | CP44: 0 | CQ44: 0 | CR44: 0 | CS44: 0 | CT44: 0 | CU44: 0 | CV44: 0
A45: 0 | B45: 0 | C45: 0 | D45: 0 | E45: 0 | F45: 0 | G45: 0 | H45: 0 | I45: 0 | J45: 0 | K45: 0 | L45: 0 | M45: 0 | N45: 0 | O45: 0 | P45: 0 | Q45: 0 | R45: 0 | S45: 0 | T45: 0 | U45: 0 | V45: 0 | W45: 0 | X45: 0 | Y45: 0 | Z45: 0 | AA45: 0 | AB45: 0 | AC45: 0 | AD45: 0 | AE45: 0 | AF45: 0 | AG45: 0 | AH45: 0 | AI45: 0 | AJ45: 0 | AK45: 0 | AL45: 0 | AM45: 0 | AN45: 0 | AO45: 0 | AP45: 0 | AQ45: 0 | AR45: 0 | AS45: 0 | AT45: 0 | AU45: 0 | AV45: 0 | AW45: 0 | AX45: 0 | AY45: 0 | AZ45: 0 | BA45: 0 | BB45: 0 | BC45: 0 | BD45: 0 | BE45: 0 | BF45: 0 | BG45: 0 | BH45: 0 | BI45: 0 | BJ45: 0 | BK45: 0 | BL45: 0 | BM45: 0 | BN45: 0 | BO45: 0 | BP45: 0 | BQ45: 0 | BR45: 0 | BS45: 0 | BT45: 0 | BU45: 0 | BV45: 0 | BW45: 0 | BX45: 0 | BY45: 0 | BZ45: 0 | CA45: 0 | CB45: 0 | CC45: 0 | CD45: 0 | CE45: 0 | CF45: 0 | CG45: 0 | CH45: 0 | CI45: 0 | CJ45: 0 | CK45: 0 | CL45: 0 | CM45: 0 | CN45: 0 | CO45: 0 | CP45: 0 | CQ45: 0 | CR45: 0 | CS45: 0 | CT45: 0 | CU45: 0 | CV45: 0
A46: 0 | B46: 0 | C46: 0 | D46: 0 | E46: 0 | F46: 0 | G46: 0 | H46: 0 | I46: 0 | J46: 0 | K46: 0 | L46: 0 | M46: 0 | N46: 0 | O46: 0 | P46: 0 | Q46: 0 | R46: 0 | S46: 0 | T46: 0 | U46: 0 | V46: 0 | W46: 0 | X46: 0 | Y46: 0 | Z46: 0 | AA46: 0 | AB46: 0 | AC46: 0 | AD46: 0 | AE46: 0 | AF46: 0 | AG46: 0 | AH46: 0 | AI46: 0 | AJ46: 0 | AK46: 0 | AL46: 0 | AM46: 0 | AN46: 0 | AO46: 0 | AP46: 0 | AQ46: 0 | AR46: 0 | AS46: 0 | AT46: 0 | AU46: 0 | AV46: 0 | AW46: 0 | AX46: 0 | AY46: 0 | AZ46: 0 | BA46: 0 | BB46: 0 | BC46: 0 | BD46: 0 | BE46: 0 | BF46: 0 | BG46: 0 | BH46: 0 | BI46: 0 | BJ46: 0 | BK46: 0 | BL46: 0 | BM46: 0 | BN46: 0 | BO46: 0 | BP46: 0 | BQ46: 0 | BR46: 0 | BS46: 0 | BT46: 0 | BU46: 0 | BV46: 0 | BW46: 0 | BX46: 0 | BY46: 0 | BZ46: 0 | CA46: 0 | CB46: 0 | CC46: 0 | CD46: 0 | CE46: 0 | CF46: 0 | CG46: 0 | CH46: 0 | CI46: 0 | CJ46: 0 | CK46: 0 | CL46: 0 | CM46: 0 | CN46: 0 | CO46: 0 | CP46: 0 | CQ46: 0 | CR46: 0 | CS46: 0 | CT46: 0 | CU46: 0 | CV46: 0
A47: 0 | B47: 0 | C47: 0 | D47: 0 | E47: 0 | F47: 0 | G47: 0 | H47: 0 | I47: 0 | J47: 0 | K47: 0 | L47: 0 | M47: 0 | N47: 0 | O47: 0 | P47: 0 | Q47: 0 | R47: 0 | S47: 0 | T47: 0 | U47: 0 | V47: 0 | W47: 0 | X47: 0 | Y47: 0 | Z47: 0 | AA47: 0 | AB47: 0 | AC47: 0 | AD47: 0 | AE47: 0 | AF47: 0 | AG47: 0 | AH47: 0 | AI47: 0 | AJ47: 0 | AK47: 0 | AL47: 0 | AM47: 0 | AN47: 0 | AO47: 0 | AP47: 0 | AQ47: 0 | AR47: 0 | AS47: 0 | AT47: 0 | AU47: 0 | AV47: 0 | AW47: 0 | AX47: 0 | AY47: 0 | AZ47: 0 | BA47: 0 | BB47: 0 | BC47: 0 | BD47: 0 | BE47: 0 | BF47: 0 | BG47: 0 | BH47: 0 | BI47: 0 | BJ47: 0 | BK47: 0 | BL47: 0 | BM47: 0 | BN47: 0 | BO47: 0 | BP47: 0 | BQ47: 0 | BR47: 0 | BS47: 0 | BT47: 0 | BU47: 0 | BV47: 0 | BW47: 0 | BX47: 0 | BY47: 0 | BZ47: 0 | CA47: 0 | CB47: 0 | CC47: 0 | CD47: 0 | CE47: 0 | CF47: 0 | CG47: 0 | CH47: 0 | CI47: 0 | CJ47: 0 | CK47: 0 | CL47: 0 | CM47: 0 | CN47: 0 | CO47: 0 | CP47: 0 | CQ47: 0 | CR47: 0 | CS47: 0 | CT47: 0 | CU47: 0 | CV47: 0
A48: 0 | B48: 0 | C48: 0 | D48: 0 | E48: 0 | F48: 0 | G48: 0 | H48: 0 | I48: 0 | J48: 0 | K48: 0 | L48: 0 | M48: 0 | N48: 0 | O48: 0 | P48: 0 | Q48: 0 | R48: 0 | S48: 0 | T48: 0 | U48: 0 | V48: 0 | W48: 0 | X48: 0 | Y48: 0 | Z48: 0 | AA48: 0 | AB48: 0 | AC48: 0 | AD48: 0 | AE48: 0 | AF48: 0 | AG48: 0 | AH48: 0 | AI48: 0 | AJ48: 0 | AK48: 0 | AL48: 0 | AM48: 0 | AN48: 0 | AO48: 0 | AP48: 0 | AQ48: 0 | AR48: 0 | AS48: 0 | AT48: 0 | AU48: 0 | AV48: 0 | AW48: 0 | AX48: 0 | AY48: 0 | AZ48: 0 | BA48: 0 | BB48: 0 | BC48: 0 | BD48: 0 | BE48: 0 | BF48: 0 | BG48: 0 | BH48: 0 | BI48: 0 | BJ48: 0 | BK48: 0 | BL48: 0 | BM48: 0 | BN48: 0 | BO48: 0 | BP48: 0 | BQ48: 0 | BR48: 0 | BS48: 0 | BT48: 0 | BU48: 0 | BV48: 0 | BW48: 0 | BX48: 0 | BY48: 0 | BZ48: 0 | CA48: 0 | CB48: 0 | CC48: 0 | CD48: 0 | CE48: 0 | CF48: 0 | CG48: 0 | CH48: 0 | CI48: 0 | CJ48: 0 | CK48: 0 | CL48: 0 | CM48: 0 | CN48: 0 | CO48: 0 | CP48: 0 | CQ48: 0 | CR48: 0 | CS48: 0 | CT48: 0 | CU48: 0 | CV48: 0
A49: 0 | B49: 0 | C49: 0 | D49: 0 | E49: 0 | F49: 0 | G49: 0 | H49: 0 | I49: 0 | J49: 0 | K49: 0 | L49: 0 | M49: 0 | N49: 0 | O49: 0 | P49: 0 | Q49: 0 | R49: 0 | S49: 0 | T49: 0 | U49: 0 | V49: 0 | W49: 0 | X49: 0 | Y49: 0 | Z49: 0 | AA49: 0 | AB49: 0 | AC49: 0 | AD49: 0 | AE49: 0 | AF49: 0 | AG49: 0 | AH49: 0 | AI49: 0 | AJ49: 0 | AK49: 0 | AL49: 0 | AM49: 0 | AN49: 0 | AO49: 0 | AP49: 0 | AQ49: 0 | AR49: 0 | AS49: 0 | AT49: 0 | AU49: 0 | AV49: 0 | AW49: 0 | AX49: 0 | AY49: 0 | AZ49: 0 | BA49: 0 | BB49: 0 | BC49: 0 | BD49: 0 | BE49: 0 | BF49: 0 | BG49: 0 | BH49: 0 | BI49: 0 | BJ49: 0 | BK49: 0 | BL49: 0 | BM49: 0 | BN49: 0 | BO49: 0 | BP49: 0 | BQ49: 0 | BR49: 0 | BS49: 0 | BT49: 0 | BU49: 0 | BV49: 0 | BW49: 0 | BX49: 0 | BY49: 0 | BZ49: 0 | CA49: 0 | CB49: 0 | CC49: 0 | CD49: 0 | CE49: 0 | CF49: 0 | CG49: 0 | CH49: 0 | CI49: 0 | CJ49: 0 | CK49: 0 | CL49: 0 | CM49: 0 | CN49: 0 | CO49: 0 | CP49: 0 | CQ49: 0 | CR49: 0 | CS49: 0 | CT49: 0 | CU49: 0 | CV49: 0
A50: 0 | B50: 0 | C50: 0 | D50: 0 | E50: 0 | F50: 0 | G50: 0 | H50: 0 | I50: 0 | J50: 0 | K50: 0 | L50: 0 | M50: 0 | N50: 0 | O50: 0 | P50: 0 | Q50: 0 | R50: 0 | S50: 0 | T50: 0 | U50: 0 | V50: 0 | W50: 0 | X50: 0 | Y50: 0 | Z50: 0 | AA50: 0 | AB50: 0 | AC50: 0 | AD50: 0 | AE50: 0 | AF50: 0 | AG50: 0 | AH50: 0 | AI50: 0 | AJ50: 0 | AK50: 0 | AL50: 0 | AM50: 0 | AN50: 0 | AO50: 0 | AP50: 0 | AQ50: 0 | AR50: 0 | AS50: 0 | AT50: 0 | AU50: 0 | AV50: 0 | AW50: 0 | AX50: 0 | AY50: 0 | AZ50: 0 | BA50: 0 | BB50: 0 | BC50: 0 | BD50: 0 | BE50: 0 | BF50: 0 | BG50: 0 | BH50: 0 | BI50: 0 | BJ50: 0 | BK50: 0 | BL50: 0 | BM50: 0 | BN50: 0 | BO50: 0 | BP50: 0 | BQ50: 0 | BR50: 0 | BS50: 0 | BT50: 0 | BU50: 0 | BV50: 0 | BW50: 0 | BX50: 0 | BY50: 0 | BZ50: 0 | CA50: 0 | CB50: 0 | CC50: 0 | CD50: 0 | CE50: 0 | CF50: 0 | CG50: 0 | CH50: 0 | CI50: 0 | CJ50: 0 | CK50: 0 | CL50: 0 | CM50: 0 | CN50: 0 | CO50: 0 | CP50: 0 | CQ50: 0 | CR50: 0 | CS50: 0 | CT50: 0 | CU50: 0 | CV50: 0
A52: =AVERAGE(A1:A50) -> 0 | B52: 0 | C52: 0 | D52: 0 | E52: 0 | F52: 0 | G52: 0 | H52: 0 | I52: 0 | J52: 0 | K52: 0 | L52: =AVERAGE(L1:L50) -> 0 | M52: 0 | N52: 0 | O52: 0 | P52: 0 | Q52: 0 | R52: 0 | S52: 0 | T52: 0 | U52: 0 | V52: 0 | W52: 0 | X52: 0 | Y52: 0 | Z52: 0 | AA52: 0 | AB52: 0 | AC52: 0 | AD52: 0 | AE52: 0 | AF52: 0 | AG52: 0 | AH52: 0 | AI52: 0 | AJ52: 0 | AK52: 0 | AL52: =AVERAGE(AL1:AL50) -> 0 | AM52: 0 | AN52: 0 | AO52: 0 | AP52: 0 | AQ52: 0 | AR52: 0 | AS52: 0 | AT52: 0 | AU52: 0 | AV52: 0 | AW52: 0 | AX52: 0 | AY52: 0 | AZ52: 0 | BA52: 0 | BB52: 0 | BC52: 0 | BD52: 0 | BE52: 0 | BF52: 0 | BG52: 0 | BH52: 0 | BI52: 0 | BJ52: 0 | BK52: 0 | BL52: 0 | BM52: 0 | BN52: 0 | BO52: 0 | BP52: 0 | BQ52: 0 | BR52: 0 | BS52: 0 | BT52: 0 | BU52: 0 | BV52: 0 | BW52: 0 | BX52: 0 | BY52: 0 | BZ52: 0 | CA52: 0 | CB52: 0 | CC52: =AVERAGE(CC1:CC50) -> 0 | CD52: 0 | CE52: 0 | CF52: 0 | CG52: 0 | CH52: 0 | CI52: 0 | CJ52: 0 | CK52: 0 | CL52: 0 | CM52: 0 | CN52: 0 | CO52: 0 | CP52: 0 | CQ52: 0 | CR52: 0 | CS52: 0 | CT52: 0 | CU52: 0 | CV52: 0
A53: =STDEVA(A1:A50)/SQRT(50) -> 0 | B53: =STDEVA(B1:B50)/SQRT(50) -> 0 | C53: 0 | D53: 0 | E53: 0 | F53: 0 | G53: 0 | H53: 0 | I53: 0 | J53: 0 | K53: 0 | L53: 0 | M53: 0 | N53: 0 | O53: 0 | P53: 0 | Q53: 0 | R53: 0 | S53: 0 | T53: 0 | U53: 0 | V53: 0 | W53: 0 | X53: 0 | Y53: 0 | Z53: 0 | AA53: 0 | AB53: 0 | AC53: 0 | AD53: 0 | AE53: 0 | AF53: 0 | AG53: 0 | AH53: 0 | AI53: 0 | AJ53: 0 | AK53: 0 | AL53: 0 | AM53: 0 | AN53: 0 | AO53: 0 | AP53: 0 | AQ53: 0 | AR53: 0 | AS53: 0 | AT53: 0 | AU53: 0 | AV53: 0 | AW53: 0 | AX53: 0 | AY53: 0 | AZ53: 0 | BA53: 0 | BB53: 0 | BC53: 0 | BD53: 0 | BE53: 0 | BF53: 0 | BG53: 0 | BH53: 0 | BI53: 0 | BJ53: 0 | BK53: 0 | BL53: 0 | BM53: 0 | BN53: =STDEVA(BN1:BN50)/SQRT(50) -> 0 | BO53: 0 | BP53: 0 | BQ53: 0 | BR53: 0 | BS53: 0 | BT53: 0 | BU53: 0 | BV53: 0 | BW53: 0 | BX53: 0 | BY53: 0 | BZ53: 0 | CA53: 0 | CB53: 0 | CC53: =STDEVA(CC1:CC50)/SQRT(50) -> 0 | CD53: 0 | CE53: 0 | CF53: 0 | CG53: 0 | CH53: 0 | CI53: 0 | CJ53: 0 | CK53: 0 | CL53: 0 | CM53: 0 | CN53: 0 | CO53: 0 | CP53: 0 | CQ53: 0 | CR53: 0 | CS53: 0 | CT53: 0 | CU53: 0 | CV53: 0
A54: =(A52-mean)/A53 ->  | AG54: =(AG52-mean)/AG53 ->  | BM54: =(BM52-mean)/BM53 ->  | CC54: =(CC52-mean)/CC53 -> 
A55: =0.9*_xlfn.NORM.DIST(A52,mean,sd,FALSE) -> 0 | B55: 0 | C55: 0 | D55: 0 | E55: 0 | F55: 0 | G55: 0 | H55: 0 | I55: 0 | J55: 0 | K55: 0 | L55: 0 | M55: 0 | N55: 0 | O55: 0 | P55: 0 | Q55: 0 | R55: 0 | S55: 0 | T55: 0 | U55: 0 | V55: 0 | W55: 0 | X55: 0 | Y55: 0 | Z55: 0 | AA55: 0 | AB55: 0 | AC55: 0 | AD55: 0 | AE55: 0 | AF55: 0 | AG55: =0.9*_xlfn.NORM.DIST(AG52,mean,sd,FALSE) -> 0 | AH55: 0 | AI55: 0 | AJ55: 0 | AK55: 0 | AL55: 0 | AM55: 0 | AN55: 0 | AO55: 0 | AP55: 0 | AQ55: 0 | AR55: 0 | AS55: 0 | AT55: 0 | AU55: 0 | AV55: 0 | AW55: 0 | AX55: 0 | AY55: 0 | AZ55: 0 | BA55: 0 | BB55: 0 | BC55: 0 | BD55: 0 | BE55: 0 | BF55: 0 | BG55: 0 | BH55: 0 | BI55: 0 | BJ55: 0 | BK55: 0 | BL55: 0 | BM55: =0.9*_xlfn.NORM.DIST(BM52,mean,sd,FALSE) -> 0 | BN55: 0 | BO55: 0 | BP55: 0 | BQ55: 0 | BR55: 0 | BS55: 0 | BT55: 0 | BU55: 0 | BV55: 0 | BW55: 0 | BX55: 0 | BY55: 0 | BZ55: 0 | CA55: 0 | CB55: 0 | CC55: 0 | CD55: 0 | CE55: 0 | CF55: 0 | CG55: 0 | CH55: 0 | CI55: 0 | CJ55: 0 | CK55: 0 | CL55: 0 | CM55: 0 | CN55: 0 | CO55: 0 | CP55: 0 | CQ55: 0 | CR55: 0 | CS55: 0 | CT55: 0 | CU55: 0 | CV55: 0
A56: 1 | B56: 2 | C56: 3 | D56: 4 | E56: 5 | F56: 6 | G56: 7 | H56: 8 | I56: 9 | J56: 10 | K56: 11 | L56: 12 | M56: 13 | N56: 14 | O56: 15 | P56: 16 | Q56: 17 | R56: 18 | S56: 19 | T56: 20 | U56: 21 | V56: 22 | W56: 23 | X56: 24 | Y56: 25 | Z56: 26 | AA56: 27 | AB56: 28 | AC56: 29 | AD56: 30 | AE56: 31 | AF56: 32 | AG56: 33 | AH56: 34 | AI56: 35 | AJ56: 36 | AK56: 37 | AL56: 38 | AM56: 39 | AN56: 40 | AO56: 41 | AP56: 42 | AQ56: 43 | AR56: 44 | AS56: 45 | AT56: 46 | AU56: 47 | AV56: 48 | AW56: 49 | AX56: 50 | AY56: 51 | AZ56: 52 | BA56: 53 | BB56: 54 | BC56: 55 | BD56: 56 | BE56: 57 | BF56: 58 | BG56: 59 | BH56: 60 | BI56: 61 | BJ56: 62 | BK56: 63 | BL56: 64 | BM56: 65 | BN56: 66 | BO56: 67 | BP56: 68 | BQ56: 69 | BR56: 70 | BS56: 71 | BT56: 72 | BU56: 73 | BV56: 74 | BW56: 75 | BX56: 76 | BY56: 77 | BZ56: 78 | CA56: 79 | CB56: 80 | CC56: 81 | CD56: 82 | CE56: 83 | CF56: 84 | CG56: 85 | CH56: 86 | CI56: 87 | CJ56: 88 | CK56: 89 | CL56: 90 | CM56: 91 | CN56: 92 | CO56: 93 | CP56: 94 | CQ56: 95 | CR56: 96 | CS56: 97 | CT56: 98 | CU56: 99 | CV56: 100

Sheet Calcs
B1: =mean-3.5*sd -> 11.01291713 | C1: =NORMDIST(B1,mean,sd,FALSE) -> 0.01632639826 | D1: x's | E1: =samples!A52 -> 0 | F1: =samples!A52 -> 0 | G1: =IF(OR(samples!A$52>Right,samples!A$52<Left),1,0) -> 1 | H1: =samples!A55 -> 0.00 | I1: =H1 -> 0.00 | P1: =z -> 1.645
B2: =B1+7*sd/100 -> 11.01665879 | C2: 0.0208079125 | D2: y's | E2: 0 | F2: 0.5 | H2: 0 | I2: 0.05
B3: 11.02040045 | C3: 0.02638995177 | E3: =samples!B$52 -> 0 | F3: =samples!B$52 -> 0 | G3: =IF(OR(samples!B$52>Right,samples!B$52<Left),1,0) -> 1 | H3: =samples!B55 -> 0.00 | I3: =H3 -> 0.00 | L3: For Pop'n Histogram
B4: 11.0241421 | C4: 0.03330585885 | E4: 0 | F4: 0.5 | H4: 0 | I4: 0.5 | L4: Pop Freqs
B5: 11.02788376 | C5: 0.04182872578 | E5: =samples!C$52 -> 0 | F5: =samples!C$52 -> 0 | G5: =IF(OR(samples!C$52>Right,samples!C$52<Left),1,0) -> 1 | H5: =samples!C55 -> 0.00 | I5: =H5 -> 0.00 | L5: 61 | M5: =IF(pop=1,Pops!D5,IF(pop=2,Pops!F5,IF(pop=3,Pops!H5,Pops!J5))) -> 3
B6: 11.03162542 | C6: 0.05227578819 | E6: 0 | F6: 0.5 | H6: 0 | I6: 0.5 | L6: 62 | M6: =IF(pop=1,Pops!D6,IF(pop=2,Pops!F6,IF(pop=3,Pops!H6,Pops!J6))) -> 5
B7: 11.03536707 | C7: 0.0650127447 | E7: =samples!D$52 -> 0 | F7: =samples!D$52 -> 0 | G7: =IF(OR(samples!D$52>Right,samples!D$52<Left),1,0) -> 1 | H7: =samples!D55 -> 0.00 | I7: =H7 -> 0.00 | L7: 63 | M7: =IF(pop=1,Pops!D7,IF(pop=2,Pops!F7,IF(pop=3,Pops!H7,Pops!J7))) -> 6
B8: 11.03910873 | C8: 0.0804578402 | E8: 0 | F8: 0.5 | H8: 0 | I8: 0.5 | L8: 64 | M8: =IF(pop=1,Pops!D8,IF(pop=2,Pops!F8,IF(pop=3,Pops!H8,Pops!J8))) -> 15
B9: 11.04285039 | C9: 0.09908552073 | D9: series 5 | E9: =samples!E$52 -> 0 | F9: =samples!E$52 -> 0 | G9: =IF(OR(samples!D$52>Right,samples!E$52<Left),1,0) -> 1 | H9: =samples!E55 -> 0.00 | I9: 0.00 | L9: 65 | M9: =IF(pop=1,Pops!D9,IF(pop=2,Pops!F9,IF(pop=3,Pops!H9,Pops!J9))) -> 11
B10: 11.04659205 | C10: 0.1214294363 | E10: 0 | F10: 0.5 | H10: 0 | I10: 0.5 | L10: 66 | M10: =IF(pop=1,Pops!D10,IF(pop=2,Pops!F10,IF(pop=3,Pops!H10,Pops!J10))) -> 10
B11: 11.0503337 | C11: 0.1480845394 | D11: 16 | E11: =samples!F$52 -> 0 | F11: =samples!F$52 -> 0 | G11: =IF(OR(samples!F$52>Right,samples!F$52<Left),1,0) -> 1 | H11: =samples!F55 -> 0.00 | I11: 0.00 | L11: 67 | M11: =IF(pop=1,Pops!D11,IF(pop=2,Pops!F11,IF(pop=3,Pops!H11,Pops!J11))) -> 15
B12: 11.05407536 | C12: 0.1797080021 | E12: 0 | F12: 0.5 | H12: 0 | I12: 0.5 | L12: 68 | M12: =IF(pop=1,Pops!D12,IF(pop=2,Pops!F12,IF(pop=3,Pops!H12,Pops!J12))) -> 14
B13: 11.05781702 | C13: 0.2170186562 | D13: 18 | E13: =samples!G$52 -> 0 | F13: =samples!G$52 -> 0 | G13: =IF(OR(samples!G$52>Right,samples!G$52<Left),1,0) -> 1 | H13: =samples!G55 -> 0.00 | I13: 0.00 | L13: 69 | M13: =IF(pop=1,Pops!D13,IF(pop=2,Pops!F13,IF(pop=3,Pops!H13,Pops!J13))) -> 23
B14: 11.06155868 | C14: 0.2607946518 | E14: 0 | F14: 0.5 | H14: 0 | I14: 0.5 | L14: 70 | M14: =IF(pop=1,Pops!D14,IF(pop=2,Pops!F14,IF(pop=3,Pops!H14,Pops!J14))) -> 20
B15: 11.06530033 | C15: 0.3118690297 | D15: 20 | E15: =samples!H$52 -> 0 | F15: =samples!H$52 -> 0 | G15: =IF(OR(samples!H$52>Right,samples!H$52<Left),1,0) -> 1 | H15: =samples!H55 -> 0.00 | I15: 0.00 | L15: 71 | M15: =IF(pop=1,Pops!D15,IF(pop=2,Pops!F15,IF(pop=3,Pops!H15,Pops!J15))) -> 54
B16: 11.06904199 | C16: 0.371122918 | E16: 0 | F16: 0.5 | H16: 0 | I16: 0.5 | L16: 72 | M16: =IF(pop=1,Pops!D16,IF(pop=2,Pops!F16,IF(pop=3,Pops!H16,Pops!J16))) -> 58
B17: 11.07278365 | C17: 0.4394760944 | D17: 22 | E17: =samples!I$52 -> 0 | F17: =samples!I$52 -> 0 | G17: =IF(OR(samples!I$52>Right,samples!I$52<Left),1,0) -> 1 | H17: =samples!I55 -> 0.00 | I17: 0.00 | L17: 73 | M17: =IF(pop=1,Pops!D17,IF(pop=2,Pops!F17,IF(pop=3,Pops!H17,Pops!J17))) -> 60
B18: 11.07652531 | C18: 0.517874701 | E18: 0 | F18: 0.5 | H18: 0 | I18: 0.5 | L18: 74 | M18: =IF(pop=1,Pops!D18,IF(pop=2,Pops!F18,IF(pop=3,Pops!H18,Pops!J18))) -> 54
B19: 11.08026696 | C19: 0.6072759636 | D19: 24 | E19: =samples!J$52 -> 0 | F19: =samples!J$52 -> 0 | G19: =IF(OR(samples!J$52>Right,samples!J$52<Left),1,0) -> 1 | H19: =samples!J55 -> 0.00 | I19: 0.00 | L19: 75 | M19: =IF(pop=1,Pops!D19,IF(pop=2,Pops!F19,IF(pop=3,Pops!H19,Pops!J19))) -> 62
B20: 11.08400862 | C20: 0.7086298544 | E20: 0 | F20: 0.5 | H20: 0 | I20: 0.5
B21: 11.08775028 | C21: 0.822857734 | D21: 26 | E21: =samples!K$52 -> 0 | F21: =samples!K$52 -> 0 | G21: =IF(OR(samples!K$52>Right,samples!K$52<Left),1,0) -> 1 | H21: =samples!K55 -> 0.00 | I21: 0.00 | J21: pop= | K21: =IF(pop=1,"normal",IF(pop=2,"uniform",IF(pop=3,"U-shaped","skewed"))) -> skewed
B22: 11.09149194 | C22: 0.9508281322 | E22: 0 | F22: 0.5 | H22: 0 | I22: 0.5 | J22: pop n= | K22: =IF(pop=1, 210,IF(pop=2,424,IF(pop=3,397,410))) -> 410
B23: 11.09523359 | C23: 1.093329955 | D23: 28 | E23: =samples!L$52 -> 0 | F23: =samples!L$52 -> 0 | G23: =IF(OR(samples!L$52>Right,samples!L$52<Left),1,0) -> 1 | H23: =samples!L55 -> 0.00 | I23: 0.00 | K23: =IF(pop=1, 210,IF(pop=2,424,IF(pop=3,397,410))) -> 410
B24: 11.09897525 | C24: 1.251043551 | E24: 0 | F24: 0.5 | H24: 0 | I24: 0.5 | K24: SigLevel= | L24: =IF('P-Values'!D16=TRUE, 0.1,IF('P-Values'!D17=TRUE, 0.05,IF('P-Values'!D18=TRUE,0.02,0.01))) -> 10% | M24: =100*L24 -> 10
B25: 11.10271691 | C25: 1.424510212 | D25: 30 | E25: =samples!M$52 -> 0 | F25: =samples!M$52 -> 0 | G25: =IF(OR(samples!M$52>Right,samples!M$52<Left),1,0) -> 1 | H25: =samples!M55 -> 0.00 | I25: 0.00 | K25: z-value= | L25: =IF('P-Values'!D16=TRUE, 1.645,IF('P-Values'!D17=TRUE, 1.96,IF('P-Values'!D18=TRUE,2.33,2.57))) -> 1.645 | N25: PCV = | O25: =0.9*_xlfn.NORM.DIST(z,0,1,FALSE) -> 0.09279972998
B26: 11.10645857 | C26: 1.614100836 | E26: 0 | F26: 0.5 | H26: 0 | I26: 0.5
B27: 11.11020022 | C27: 1.819984608 | D27: 32 | E27: =samples!N$52 -> 0 | F27: =samples!N$52 -> 0 | G27: =IF(OR(samples!N$52>Right,samples!N$52<Left),1,0) -> 1 | H27: =samples!N55 -> 0.00 | I27: 0.00 | J27: misses= | K27: =COUNTIF(H1:H196,"<" &PCV)-100 -> 96 | L27: =K27/100 -> 96.0%
B28: 11.11394188 | C28: 2.042098681 | E28: 0 | F28: 0.5 | H28: 0 | I28: 0.5 | J28: hits= | K28: =100-K27 -> 4
B29: 11.11768354 | C29: 2.280119934 | D29: 34 | E29: =samples!O$52 -> 0 | F29: =samples!O$52 -> 0 | G29: =IF(OR(samples!O$52>Right,samples!O$52<Left),1,0) -> 1 | H29: =samples!O55 -> 0.00 | I29: 0.00
B30: 11.12142519 | C30: 2.533439952 | E30: 0 | F30: 0.5 | H30: 0 | I30: 0.5
B31: 11.12516685 | C31: 2.801144389 | D31: 36 | E31: =samples!P$52 -> 0 | F31: =samples!P$52 -> 0 | G31: =IF(OR(samples!P$52>Right,samples!P$52<Left),1,0) -> 1 | H31: =samples!P55 -> 0.00 | I31: 0.00 | M31: New Sample = | O31: =IF('P-Values'!D29=1,-1,1) -> 1
B32: 11.12890851 | C32: 3.081997865 | E32: 0 | F32: 0.5 | H32: 0 | I32: 0.5
B33: 11.13265017 | C33: =NORMDIST(B33,mean,sd,FALSE) -> 3.374435476 | D33: 38 | E33: =samples!Q$52 -> 0 | F33: =samples!Q$52 -> 0 | G33: =IF(OR(samples!Q$52>Right,samples!Q$52<Left),1,0) -> 1 | H33: =samples!Q55 -> 0.00 | I33: 0.00
B34: =B33+7*sd/100 -> 11.13639182 | C34: 3.676561881 | E34: 0 | F34: 0.5 | H34: 0 | I34: 0.5 | K34: Vertical line for PCV
B35: 11.14013348 | C35: 3.986158735 | D35: 40 | E35: =samples!R$52 -> 0 | F35: =samples!R$52 -> 0 | G35: =IF(OR(samples!R$52>Right,samples!R$52<Left),1,0) -> 1 | H35: =samples!R55 -> 0.00 | I35: 0.00 | L35: =PCV -> 0.09279972998 | M35: 0
B36: 11.14387514 | C36: 4.300701049 | E36: 18 | F36: 18 | H36: 0 | I36: 0.5 | L36: =L35 -> 0.09279972998 | M36: 0.6
B37: 11.1476168 | C37: 4.617382768 | D37: 42 | E37: =samples!S$52 -> 0 | F37: =samples!S$52 -> 0 | G37: =IF(OR(samples!S$52>Right,samples!S$52<Left),1,0) -> 1 | H37: =samples!S55 -> 0.00 | I37: 0.00
B38: 11.15135845 | C38: 4.933151553 | E38: 0 | F38: 0.5 | H38: 0 | I38: 0.5
B39: 11.15510011 | C39: 5.244752453 | D39: 44 | E39: =samples!T$52 -> 0 | F39: =samples!T$52 -> 0 | G39: =IF(OR(samples!T$52>Right,samples!T$52<Left),1,0) -> 1 | H39: =samples!T557 -> 0.00 | I39: 0.00 | K39: Horizontal line for PCV
B40: 11.15884177 | C40: 5.54877978 | E40: 0 | F40: 0.5 | H40: 0 | I40: 0.5 | L40: =mean-3*sd -> 11.03964325 | M40: =PCV -> 0.09279972998
B41: 11.16258343 | C41: 5.841736182 | D41: 46 | E41: =samples!U$52 -> 0 | F41: =samples!U$52 -> 0 | G41: =IF(OR(samples!U$52>Right,samples!U$52<Left),1,0) -> 1 | H41: =samples!U55 -> 0.00 | I41: 0.00 | L41: =mean+3*sd -> 11.36035675 | M41: =M40 -> 0.09279972998
B42: 11.16632508 | C42: 6.1200976 | E42: 0 | F42: 0.5 | H42: 0 | I42: 0.5
B43: 11.17006674 | C43: 6.380382471 | D43: 48 | E43: =samples!V$52 -> 0 | F43: =samples!V$52 -> 0 | G43: =IF(OR(samples!V$52>Right,samples!V$52<Left),1,0) -> 1 | H43: =samples!V55 -> 0.00 | I43: 0.00
B44: 11.1738084 | C44: 6.619223348 | E44: 0 | F44: 0.5 | H44: 0 | I44: 0.5
B45: 11.17755006 | C45: 6.833438886 | D45: 50 | E45: =samples!W$52 -> 0 | F45: =samples!W$52 -> 0 | G45: =IF(OR(samples!W$52>Right,samples!W$52<Left),1,0) -> 1 | H45: =samples!W55 -> 0.00 | I45: 0.00
B46: 11.18129171 | C46: 7.020104079 | E46: 0 | F46: 0.5 | H46: 0 | I46: 0.5
B47: 11.18503337 | C47: 7.176616583 | D47: 52 | E47: =samples!X$52 -> 0 | F47: =samples!X$52 -> 0 | G47: =IF(OR(samples!X$52>Right,samples!X$52<Left),1,0) -> 1 | H47: =samples!X55 -> 0.00 | I47: 0.00
B48: 11.18877503 | C48: 7.300757019 | E48: 0 | F48: 0.5 | H48: 0 | I48: 0.5
B49: 11.19251669 | C49: 7.390741321 | D49: 54 | E49: =samples!Y$52 -> 0 | F49: =samples!Y$52 -> 0 | G49: =IF(OR(samples!Y$52>Right,samples!Y$52<Left),1,0) -> 1 | H49: =samples!Y557 -> 0.00 | I49: 0.00
B50: 11.19625834 | C50: 7.445263393 | E50: 0 | F50: 0.5 | H50: 0 | I50: 0.5
B51: 11.2 | C51: 7.463526652 | D51: 56 | E51: =samples!Z$52 -> 0 | F51: =samples!Z$52 -> 0 | G51: =IF(OR(samples!Z$52>Right,samples!Z$52<Left),1,0) -> 1 | H51: =samples!Z55 -> 0.00 | I51: 0.00
B52: 11.20374166 | C52: 7.445263393 | E52: 0 | F52: 0.5 | H52: 0 | I52: 0.5
B53: 11.20748331 | C53: 7.390741321 | D53: 58 | E53: =samples!AA$52 -> 0 | F53: =samples!AA$52 -> 0 | G53: =IF(OR(samples!AA$52>Right,samples!AA$52<Left),1,0) -> 1 | H53: =samples!AA55 -> 0.00 | I53: 0.00
B54: 11.21122497 | C54: 7.300757019 | E54: 0 | F54: 0.5 | H54: 0 | I54: 0.5
B55: 11.21496663 | C55: 7.176616583 | D55: 60 | E55: =samples!AB$52 -> 0 | F55: =samples!AB$52 -> 0 | G55: =IF(OR(samples!AB$52>Right,samples!AB$52<Left),1,0) -> 1 | H55: =samples!AB55 -> 0.00 | I55: 0.00
B56: 11.21870829 | C56: 7.020104079 | E56: 0 | F56: 0.5 | H56: 0 | I56: 0.5
B57: 11.22244994 | C57: 6.833438886 | D57: 62 | E57: =samples!AC$52 -> 0 | F57: =samples!AC$52 -> 0 | G57: =IF(OR(samples!AC$52>Right,samples!AC$52<Left),1,0) -> 1 | H57: =samples!AC55 -> 0.00 | I57: 0.00
B58: 11.2261916 | C58: 6.619223348 | E58: 0 | F58: 0.5 | H58: 0 | I58: 0.5
B59: 11.22993326 | C59: 6.380382471 | D59: 64 | E59: =samples!AD$52 -> 0 | F59: =samples!AD$52 -> 0 | G59: =IF(OR(samples!AD$52>Right,samples!AD$52<Left),1,0) -> 1 | H59: =samples!AD55 -> 0.00 | I59: 0.00
B60: 11.23367492 | C60: 6.1200976 | E60: 0 | F60: 0.5 | H60: 0 | I60: 0.5
B61: 11.23741657 | C61: 5.841736182 | D61: 66 | E61: =samples!AE$52 -> 0 | F61: =samples!AE$52 -> 0 | G61: =IF(OR(samples!AE$52>Right,samples!AE$52<Left),1,0) -> 1 | H61: =samples!AE55 -> 0.00 | I61: 0.00
B62: 11.24115823 | C62: 5.54877978 | E62: 0 | F62: 0.5 | H62: 0 | I62: 0.5
B63: 11.24489989 | C63: 5.244752453 | D63: 68 | E63: =samples!AF$52 -> 0 | F63: =samples!AF$52 -> 0 | G63: =IF(OR(samples!AF$52>Right,samples!AF$52<Left),1,0) -> 1 | H63: =samples!AF55 -> 0.00 | I63: 0.00
B64: 11.24864155 | C64: 4.933151553 | E64: 0 | F64: 0.5 | H64: 0 | I64: 0.5
B65: 11.2523832 | C65: =NORMDIST(B65,mean,sd,FALSE) -> 4.617382768 | D65: 70 | E65: =samples!AG$52 -> 0 | F65: =samples!AG$52 -> 0 | G65: =IF(OR(samples!AG$52>Right,samples!AG$52<Left),1,0) -> 1 | H65: =samples!IAG55 -> 0.00 | I65: 0.00
B66: =B65+7*sd/100 -> 11.25612486 | C66: 4.300701049 | E66: 0 | F66: 0.5 | H66: 0 | I66: 0.5
B67: 11.25986652 | C67: 3.986158735 | D67: 72 | E67: =samples!AH$52 -> 0 | F67: =samples!AH$52 -> 0 | G67: =IF(OR(samples!AH$52>Right,samples!AH$52<Left),1,0) -> 1 | H67: =samples!AH55 -> 0.00 | I67: 0.00
B68: 11.26360818 | C68: 3.676561881 | E68: 0 | F68: 0.5 | H68: 0 | I68: 0.5
B69: 11.26734983 | C69: 3.374435476 | D69: 74 | E69: =samples!AI$52 -> 0 | F69: =samples!AI$52 -> 0 | G69: =IF(OR(samples!AI$52>Right,samples!AI$52<Left),1,0) -> 1 | H69: =samples!AI55 -> 0.00 | I69: 0.00
B70: 11.27109149 | C70: 3.081997865 | E70: 0 | F70: 0.5 | H70: 0 | I70: 0.5
B71: 11.27483315 | C71: 2.801144389 | D71: 76 | E71: =samples!AJ$52 -> 0 | F71: =samples!AJ$52 -> 0 | G71: =IF(OR(samples!AJ$52>Right,samples!AJ$52<Left),1,0) -> 1 | H71: =samples!AJ55 -> 0.00 | I71: =H71 -> 0.00
B72: 11.27857481 | C72: 2.533439952 | E72: 0 | F72: 0.5 | H72: 0 | I72: 0.5
B73: 11.28231646 | C73: 2.280119934 | D73: 78 | E73: =samples!AK$52 -> 0 | F73: =samples!AK$52 -> 0 | G73: =IF(OR(samples!AK$52>Right,samples!AK$52<Left),1,0) -> 1 | H73: =samples!AK55 -> 0.00 | I73: 0.00
B74: 11.28605812 | C74: 2.042098681 | E74: 0 | F74: 0.5 | H74: 0 | I74: 0.5
B75: 11.28979978 | C75: 1.819984608 | D75: 80 | E75: =samples!AL$52 -> 0 | F75: =samples!AL$52 -> 0 | G75: =IF(OR(samples!AL$52>Right,samples!AL$52<Left),1,0) -> 1 | H75: =samples!AL55 -> 0.00 | I75: 0.00
B76: 11.29354143 | C76: 1.614100836 | E76: 0 | F76: 0.5 | H76: 0 | I76: 0.5
B77: 11.29728309 | C77: 1.424510212 | D77: 82 | E77: =samples!AM$52 -> 0 | F77: =samples!AM$52 -> 0 | G77: =IF(OR(samples!AM$52>Right,samples!AM$52<Left),1,0) -> 1 | H77: =samples!AM55 -> 0.00 | I77: 0.00
B78: 11.30102475 | C78: 1.251043551 | E78: 0 | F78: 0.5 | H78: 0 | I78: 0.5
B79: 11.30476641 | C79: 1.093329955 | D79: 84 | E79: =samples!AN$52 -> 0 | F79: =samples!AN$52 -> 0 | G79: =IF(OR(samples!AN$52>Right,samples!AN$52<Left),1,0) -> 1 | H79: =samples!AN55 -> 0.00 | I79: 0.00
B80: 11.30850806 | C80: 0.9508281322 | E80: 0 | F80: 0.5 | H80: 0 | I80: 0.5
B81: 11.31224972 | C81: 0.822857734 | D81: 86 | E81: =samples!AO$52 -> 0 | F81: =samples!AO$52 -> 0 | G81: =IF(OR(samples!AO$52>Right,samples!AO$52<Left),1,0) -> 1 | H81: =samples!A55 -> 0.00 | I81: 0.00
B82: 11.31599138 | C82: 0.7086298544 | E82: 0 | F82: 0.5 | H82: 0 | I82: 0.5
B83: 11.31973304 | C83: 0.6072759636 | D83: 88 | E83: =samples!AP$52 -> 0 | F83: =samples!AP$52 -> 0 | G83: =IF(OR(samples!AP$52>Right,samples!AP$52<Left),1,0) -> 1 | H83: =samples!AP55 -> 0.00 | I83: 0.00
B84: 11.32347469 | C84: 0.517874701 | E84: 0 | F84: 0.5 | H84: 0 | I84: 0.5
B85: 11.32721635 | C85: 0.4394760944 | D85: 90 | E85: =samples!AQ$52 -> 0 | F85: =samples!AQ$52 -> 0 | G85: =IF(OR(samples!AQ$52>Right,samples!AQ$52<Left),1,0) -> 1 | H85: =samples!IAQ55 -> 0.00 | I85: 0.00
B86: 11.33095801 | C86: 0.371122918 | E86: 0 | F86: 0.5 | H86: 0 | I86: 0.5
B87: 11.33469967 | C87: 0.3118690297 | D87: 92 | E87: =samples!AR$52 -> 0 | F87: =samples!AR$52 -> 0 | G87: =IF(OR(samples!AR$52>Right,samples!AR$52<Left),1,0) -> 1 | H87: =samples!AR55 -> 0.00 | I87: 0.00
B88: 11.33844132 | C88: 0.2607946518 | E88: 0 | F88: 0.5 | H88: 0 | I88: 0.5
B89: 11.34218298 | C89: 0.2170186562 | D89: 94 | E89: =samples!AS$52 -> 0 | F89: =samples!AS$52 -> 0 | G89: =IF(OR(samples!AS$52>Right,samples!AS$52<Left),1,0) -> 1 | H89: =samples!AS55 -> 0.00 | I89: 0.00
B90: 11.34592464 | C90: 0.1797080021 | E90: 0 | F90: 0.5 | H90: 0 | I90: 0.5
B91: 11.3496663 | C91: 0.1480845394 | D91: 96 | E91: =samples!AT$52 -> 0 | F91: =samples!AT$52 -> 0 | G91: =IF(OR(samples!AT$52>Right,samples!AT$52<Left),1,0) -> 1 | H91: =samples!AT55 -> 0.00 | I91: 0.00
B92: 11.35340795 | C92: 0.1214294363 | E92: 0 | F92: 0.5 | H92: 0 | I92: 0.5
B93: 11.35714961 | C93: 0.09908552073 | D93: 98 | E93: =samples!AU$52 -> 0 | F93: =samples!AU$52 -> 0 | G93: =IF(OR(samples!AU$52>Right,samples!AU$52<Left),1,0) -> 1 | H93: =samples!IAU55 -> 0.00 | I93: 0.00
B94: 11.36089127 | C94: 0.0804578402 | E94: 0 | F94: 0.5 | H94: 0 | I94: 0.5
B95: 11.36463293 | C95: 0.0650127447 | D95: 100 | E95: =samples!AV$52 -> 0 | F95: =samples!AV$52 -> 0 | G95: =IF(OR(samples!AV$52>Right,samples!AV$52<Left),1,0) -> 1 | H95: =samples!AV55 -> 0.00 | I95: 0.00
B96: 11.36837458 | C96: 0.05227578819 | E96: 0 | F96: 0.5 | H96: 0 | I96: 0.5
B97: 11.37211624 | C97: =NORMDIST(B97,mean,sd,FALSE) -> 0.04182872578 | D97: 102 | E97: =samples!AW$52 -> 0 | F97: =samples!AW$52 -> 0 | G97: =IF(OR(samples!AW$52>Right,samples!AW$52<Left),1,0) -> 1 | H97: =samples!AW55 -> 0.00 | I97: 0.00
B98: 11.3758579 | C98: =NORMDIST(B98,mean,sd,FALSE) -> 0.03330585885 | E98: 0 | F98: 0.5 | H98: 0 | I98: 0.5
B99: 11.37959955 | C99: =NORMDIST(B99,mean,sd,FALSE) -> 0.02638995177 | D99: 104 | E99: =samples!AX$52 -> 0 | F99: =samples!AX$52 -> 0 | G99: =IF(OR(samples!AX$52>Right,samples!AX$52<Left),1,0) -> 1 | H99: =samples!AX55 -> 0.00 | I99: 0.00
B100: 11.38334121 | C100: =NORMDIST(B100,mean,sd,FALSE) -> 0.0208079125 | E100: 0 | F100: 0.5 | H100: 0 | I100: 0.5
B101: 11.38708287 | C101: =NORMDIST(B101,mean,sd,FALSE) -> 0.01632639826 | D101: 106 | E101: =samples!AY$52 -> 0 | F101: =samples!AY$52 -> 0 | G101: =IF(OR(samples!AY$52>Right,samples!AY$52<Left),1,0) -> 1 | H101: =samples!AY55 -> 0.00 | I101: 0.00
E102: 0 | F102: 0.5 | H102: 0 | I102: 0.5
D103: 108 | E103: =samples!AZ$52 -> 0 | F103: =samples!AZ$52 -> 0 | G103: =IF(OR(samples!AZ$52>Right,samples!AZ$52<Left),1,0) -> 1 | H103: =samples!AZ55 -> 0.00 | I103: 0.00
E104: 0 | F104: 0.5 | H104: 0 | I104: 0.5
D105: 110 | E105: =samples!BA$52 -> 0 | F105: =samples!BA$52 -> 0 | G105: =IF(OR(samples!BA$52>Right,samples!BA$52<Left),1,0) -> 1 | H105: =samples!BA55 -> 0.00 | I105: 0.00
E106: 0 | F106: 0.5 | H106: 0 | I106: 0.5
D107: 112 | E107: =samples!BB$52 -> 0 | F107: =samples!BB$52 -> 0 | G107: =IF(OR(samples!BB$52>Right,samples!BB$52<Left),1,0) -> 1 | H107: =samples!BB55 -> 0.00 | I107: 0.00
E108: 0 | F108: 0.5 | H108: 0 | I108: 0.5
D109: 114 | E109: =samples!BC$52 -> 0 | F109: =samples!BC$52 -> 0 | G109: =IF(OR(samples!BC$52>Right,samples!BC$52<Left),1,0) -> 1 | H109: =samples!BC55 -> 0.00 | I109: 0.00
E110: 0 | F110: 0.5 | H110: 0 | I110: 0.5
D111: 116 | E111: =samples!BD$52 -> 0 | F111: =samples!BD$52 -> 0 | G111: =IF(OR(samples!BD$52>Right,samples!BD$52<Left),1,0) -> 1 | H111: =samples!BD55 -> 0.00 | I111: 0.00
E112: 0 | F112: 0.5 | H112: 0 | I112: 0.5
D113: 118 | E113: =samples!BE$52 -> 0 | F113: =samples!BE$52 -> 0 | G113: =IF(OR(samples!BE$52>Right,samples!BE$52<Left),1,0) -> 1 | H113: =samples!BE55 -> 0.00 | I113: 0.00
E114: 0 | F114: 0.5 | H114: 0 | I114: 0.5
D115: 120 | E115: =samples!BF$52 -> 0 | F115: =samples!BF$52 -> 0 | G115: =IF(OR(samples!BF$52>Right,samples!BF$52<Left),1,0) -> 1 | H115: =samples!BF55 -> 0.00 | I115: 0.00
E116: 0 | F116: 0.5 | H116: 0 | I116: 0.5
D117: 122 | E117: =samples!BG$52 -> 0 | F117: =samples!BG$52 -> 0 | G117: =IF(OR(samples!BG$52>Right,samples!BG$52<Left),1,0) -> 1 | H117: =samples!BG55 -> 0.00 | I117: 0.00
E118: 0 | F118: 0.5 | H118: 0 | I118: 0.5
D119: 124 | E119: =samples!BH$52 -> 0 | F119: =samples!BH$52 -> 0 | G119: =IF(OR(samples!BH$52>Right,samples!BH$52<Left),1,0) -> 1 | H119: =samples!BH55 -> 0.00 | I119: 0.00
E120: 0 | F120: 0.5 | H120: 0 | I120: 0.5
D121: 126 | E121: =samples!BI$52 -> 0 | F121: =samples!BI$52 -> 0 | G121: =IF(OR(samples!BI$52>Right,samples!BI$52<Left),1,0) -> 1 | H121: =samples!BI55 -> 0.00 | I121: 0.00
E122: 0 | F122: 0.5 | H122: 0 | I122: 0.5
D123: 128 | E123: =samples!BJ$52 -> 0 | F123: =samples!BJ$52 -> 0 | G123: =IF(OR(samples!BJ$52>Right,samples!BJ$52<Left),1,0) -> 1 | H123: =samples!BJ55 -> 0.00 | I123: 0.00
E124: 0 | F124: 0.5 | H124: 0 | I124: 0.5
D125: 130 | E125: =samples!BK$52 -> 0 | F125: =samples!BK$52 -> 0 | G125: =IF(OR(samples!BK$52>Right,samples!BK$52<Left),1,0) -> 1 | H125: =samples!BK55 -> 0.00 | I125: 0.00
E126: 0 | F126: 0.5 | H126: 0 | I126: 0.5
D127: 132 | E127: =samples!BL$52 -> 0 | F127: =samples!BL$52 -> 0 | G127: =IF(OR(samples!BL$52>Right,samples!BL$52<Left),1,0) -> 1 | H127: =samples!BL55 -> 0.00 | I127: 0.00
E128: 0 | F128: 0.5 | H128: 0 | I128: 0.5
D129: 134 | E129: =samples!BM$52 -> 0 | F129: =samples!BM$52 -> 0 | G129: =IF(OR(samples!BM$52>Right,samples!BM$52<Left),1,0) -> 1 | H129: =samples!BM55 -> 0.00 | I129: 0.00
E130: 0 | F130: 0.5 | H130: 0 | I130: 0.5
D131: 136 | E131: =samples!BN$52 -> 0 | F131: =samples!BN$52 -> 0 | G131: =IF(OR(samples!BN$52>Right,samples!BN$52<Left),1,0) -> 1 | H131: =samples!BN55 -> 0.00 | I131: 0.00
E132: 0 | F132: 0.5 | H132: 0 | I132: 0.5
D133: 138 | E133: =samples!BO$52 -> 0 | F133: =samples!BO$52 -> 0 | G133: =IF(OR(samples!BO$52>Right,samples!BO$52<Left),1,0) -> 1 | H133: =samples!BO55 -> 0.00 | I133: 0.00
E134: 0 | F134: 0.5 | H134: 0 | I134: 0.5
D135: 140 | E135: =samples!BP$52 -> 0 | F135: =samples!BP$52 -> 0 | G135: =IF(OR(samples!BP$52>Right,samples!BP$52<Left),1,0) -> 1 | H135: =samples!BP55 -> 0.00 | I135: =H135 -> 0.00
E136: 0 | F136: 0.5 | H136: 0 | I136: 0.5
D137: 142 | E137: =samples!BQ$52 -> 0 | F137: =samples!BQ$52 -> 0 | G137: =IF(OR(samples!BQ$52>Right,samples!BQ$52<Left),1,0) -> 1 | H137: =samples!BQ55 -> 0.00 | I137: 0.00
E138: 0 | F138: 0.5 | H138: 0 | I138: 0.5
D139: 144 | E139: =samples!BR$52 -> 0 | F139: =samples!BR$52 -> 0 | G139: =IF(OR(samples!BR$52>Right,samples!BR$52<Left),1,0) -> 1 | H139: =samples!BR55 -> 0.00 | I139: 0.00
E140: 0 | F140: 0.5 | H140: 0 | I140: 0.5
D141: 146 | E141: =samples!BS$52 -> 0 | F141: =samples!BS$52 -> 0 | G141: =IF(OR(samples!BS$52>Right,samples!BS$52<Left),1,0) -> 1 | H141: =samples!BS55 -> 0.00 | I141: 0.00
E142: 0 | F142: 0.5 | H142: 0 | I142: 0.5
D143: 148 | E143: =samples!BT$52 -> 0 | F143: =samples!BT$52 -> 0 | G143: =IF(OR(samples!BT$52>Right,samples!BT$52<Left),1,0) -> 1 | H143: =samples!BT55 -> 0.00 | I143: 0.00
E144: 0 | F144: 0.5 | H144: 0 | I144: 0.5
D145: 150 | E145: =samples!BU$52 -> 0 | F145: =samples!BU$52 -> 0 | G145: =IF(OR(samples!BU$52>Right,samples!BU$52<Left),1,0) -> 1 | H145: =samples!BU55 -> 0.00 | I145: 0.00
E146: 0 | F146: 0.5 | H146: 0 | I146: 0.5
D147: 152 | E147: =samples!BV$52 -> 0 | F147: =samples!BV$52 -> 0 | G147: =IF(OR(samples!BV$52>Right,samples!BV$52<Left),1,0) -> 1 | H147: =samples!BV55 -> 0.00 | I147: 0.00
E148: 0 | F148: 0.5 | H148: 0 | I148: 0.5
D149: 154 | E149: =samples!BW$52 -> 0 | F149: =samples!BW$52 -> 0 | G149: =IF(OR(samples!BW$52>Right,samples!BW$52<Left),1,0) -> 1 | H149: =samples!BW55 -> 0.00 | I149: 0.00
E150: 0 | F150: 0.5 | H150: 0 | I150: 0.5
D151: 156 | E151: =samples!BX$52 -> 0 | F151: =samples!BX$52 -> 0 | G151: =IF(OR(samples!BX$52>Right,samples!BX$52<Left),1,0) -> 1 | H151: =samples!BX55 -> 0.00 | I151: 0.00
E152: 0 | F152: 0.5 | H152: 0 | I152: 0.5
D153: 158 | E153: =samples!BY$52 -> 0 | F153: =samples!BY$52 -> 0 | G153: =IF(OR(samples!BY$52>Right,samples!BY$52<Left),1,0) -> 1 | H153: =samples!BY55 -> 0.00 | I153: 0.00
E154: 0 | F154: 0.5 | H154: 0 | I154: 0.5
D155: 160 | E155: =samples!BZ$52 -> 0 | F155: =samples!BZ$52 -> 0 | G155: =IF(OR(samples!BZ$52>Right,samples!BZ$52<Left),1,0) -> 1 | H155: =samples!BZ55 -> 0.00 | I155: 0.00
E156: 0 | F156: 0.5 | H156: 0 | I156: 0.5
D157: 162 | E157: =samples!CA$52 -> 0 | F157: =samples!CA$52 -> 0 | G157: =IF(OR(samples!CA$52>Right,samples!CA$52<Left),1,0) -> 1 | H157: =samples!CA55 -> 0.00 | I157: 0.00
E158: 0 | F158: 0.5 | H158: 0 | I158: 0.5
D159: 164 | E159: =samples!CB$52 -> 0 | F159: =samples!CB$52 -> 0 | G159: =IF(OR(samples!CB$52>Right,samples!CB$52<Left),1,0) -> 1 | H159: =samples!CB55 -> 0.00 | I159: 0.00
E160: 0 | F160: 0.5 | H160: 0 | I160: 0.5
D161: =D159+2 -> 166 | H161: =samples!CC$55 -> 0.00 | I161: 0.00
H162: 0 | I162: 0.5
D163: =D161+2 -> 168 | H163: =samples!CD$55 -> 0.00 | I163: 0.00
H164: 0 | I164: 0.5
D165: =D163+2 -> 170 | H165: =samples!CE$55 -> 0.00 | I165: 0.00
H166: 0 | I166: 0.5
D167: =D165+2 -> 172 | H167: =samples!CF$55 -> 0.00 | I167: 0.00
H168: 0 | I168: 0.5
D169: =D167+2 -> 174 | H169: =samples!CG$55 -> 0.00 | I169: 0.00
H170: 0 | I170: 0.5
D171: =D169+2 -> 176 | H171: =samples!CH$55 -> 0.00 | I171: 0.00
H172: 0 | I172: 0.5
D173: =D171+2 -> 178 | H173: =samples!CI$55 -> 0.00 | I173: 0.00
H174: 0 | I174: 0.5
D175: =D173+2 -> 180 | H175: =samples!CJ$55 -> 0.00 | I175: 0.00
H176: 0 | I176: 0.5
D177: =D175+2 -> 182 | H177: =samples!CK$55 -> 0.00 | I177: 0.00
H178: 0 | I178: 0.5
D179: =D177+2 -> 184 | H179: =samples!CL$55 -> 0.00 | I179: 0.00
H180: 0 | I180: 0.5
D181: =D179+2 -> 186 | H181: =samples!CM$55 -> 0.00 | I181: 0.00
H182: 0 | I182: 0.5
D183: =D181+2 -> 188 | H183: =samples!CN$55 -> 0.00 | I183: 0.00
H184: 0 | I184: 0.5
D185: =D183+2 -> 190 | H185: =samples!CO$55 -> 0.00 | I185: 0.00
H186: 0 | I186: 0.5
D187: =D185+2 -> 192 | H187: =samples!CP$55 -> 0.00 | I187: 0.00
H188: 0 | I188: 0.5
D189: =D187+2 -> 194 | H189: =samples!CQ$55 -> 0.00 | I189: 0.00
H190: 0 | I190: 0.5
D191: =D189+2 -> 196 | H191: =samples!CR$55 -> 0.00 | I191: 0.00
H192: 0 | I192: 0.5
D193: =D191+2 -> 198 | H193: =samples!CS$55 -> 0.00 | I193: 0.00
H194: 0 | I194: 0.5
D195: =D193+2 -> 200 | H195: =samples!CT$55 -> 0.00 | I195: 0.00
B196: Two vertical lines | H196: 0 | I196: 0.5
B197: =mean-$L$25*sd -> 11.11207105 | C197: =mean-$L$25*sd -> 11.11207105
B198: 0 | C198: 0.75
B199: =mean+$L$25*sd -> 11.28792895 | C199: =mean+$L$25*sd -> 11.28792895
B200: 0 | C200: 0.75
... 2 more rows
